{"text_format":"3","workbook":"xlsx","n_sheets":2,"sheets":["Class schedule","Class list"],"not_rendered":{"defined_names":14},"read":"whole","date_system":"1900"}

{"sheet":"Class schedule","index":0,"n_rows":58,"n_cols":10,"rows_kept":58,"merged":[[0,1,2,5],[1,8,2,8]]}
[null,"Class Schedule",{"$nulls":7}," "]
[{"$nulls":6},"SCHEDULE START","TIME INTERVAL","CLASS LIST"]
[{"$nulls":6},"08:00:00","15 MIN"]
[]
[null,"TIME","SUNDAY","MONDAY","TUESDAY","WEDNESDAY","THURSDAY","FRIDAY","SATURDAY"]
[null,{"$f":"ScheduleStart","v":"08:00:00"},{"$f":"IFERROR(INDEX(ClassList[],MATCH(SUMPRODUCT((ClassList[DAY]=ClassSchedule[[#Headers],[SUNDAY]])*(ROUNDDOWN($B6,10)>=ROUNDDOWN(ClassList[START TIME],10))*($B6<=ClassList[END TIME]),ClassList[UNIQUE]),ClassList[UNIQUE],0),2),0)","v":0},{"$f":"IFERROR(INDEX(ClassList[],MATCH(SUMPRODUCT((ClassList[DAY]=ClassSchedule[[#Headers],[MONDAY]])*(ROUNDDOWN($B6,10)>=ROUNDDOWN(ClassList[START TIME],10))*($B6<=ClassList[END TIME]),ClassList[UNIQUE]),ClassList[UNIQUE],0),2),0)","v":0},{"$f":"IFERROR(INDEX(ClassList[],MATCH(SUMPRODUCT((ClassList[DAY]=ClassSchedule[[#Headers],[TUESDAY]])*(ROUNDDOWN($B6,10)>=ROUNDDOWN(ClassList[START TIME],10))*($B6<=ClassList[END TIME]),ClassList[UNIQUE]),ClassList[UNIQUE],0),2),0)","v":0},{"$f":"IFERROR(INDEX(ClassList[],MATCH(SUMPRODUCT((ClassList[DAY]=ClassSchedule[[#Headers],[WEDNESDAY]])*(ROUNDDOWN($B6,10)>=ROUNDDOWN(ClassList[START TIME],10))*($B6<=ClassList[END TIME]),ClassList[UNIQUE]),ClassList[UNIQUE],0),2),0)","v":0},{"$f":"IFERROR(INDEX(ClassList[],MATCH(SUMPRODUCT((ClassList[DAY]=ClassSchedule[[#Headers],[THURSDAY]])*(ROUNDDOWN($B6,10)>=ROUNDDOWN(ClassList[START TIME],10))*($B6<=ClassList[END TIME]),ClassList[UNIQUE]),ClassList[UNIQUE],0),2),0)","v":0},{"$f":"IFERROR(INDEX(ClassList[],MATCH(SUMPRODUCT((ClassList[DAY]=ClassSchedule[[#Headers],[FRIDAY]])*(ROUNDDOWN($B6,10)>=ROUNDDOWN(ClassList[START TIME],10))*($B6<=ClassList[END TIME]),ClassList[UNIQUE]),ClassList[UNIQUE],0),2),0)","v":0},{"$f":"IFERROR(INDEX(ClassList[],MATCH(SUMPRODUCT((ClassList[DAY]=ClassSchedule[[#Headers],[SATURDAY]])*(ROUNDDOWN($B6,10)>=ROUNDDOWN(ClassList[START TIME],10))*($B6<=ClassList[END TIME]),ClassList[UNIQUE]),ClassList[UNIQUE],0),2),0)","v":0}]
[null,{"$f":"B6+Increment","v":"08:15:00"},{"$f":"IFERROR(INDEX(ClassList[],MATCH(SUMPRODUCT((ClassList[DAY]=ClassSchedule[[#Headers],[SUNDAY]])*(ROUNDDOWN($B7,10)>=ROUNDDOWN(ClassList[START TIME],10))*($B7<=ClassList[END TIME]),ClassList[UNIQUE]),ClassList[UNIQUE],0),2),0)","v":0},{"$f":"IFERROR(INDEX(ClassList[],MATCH(SUMPRODUCT((ClassList[DAY]=ClassSchedule[[#Headers],[MONDAY]])*(ROUNDDOWN($B7,10)>=ROUNDDOWN(ClassList[START TIME],10))*($B7<=ClassList[END TIME]),ClassList[UNIQUE]),ClassList[UNIQUE],0),2),0)","v":"MTH-113"},{"$f":"IFERROR(INDEX(ClassList[],MATCH(SUMPRODUCT((ClassList[DAY]=ClassSchedule[[#Headers],[TUESDAY]])*(ROUNDDOWN($B7,10)>=ROUNDDOWN(ClassList[START TIME],10))*($B7<=ClassList[END TIME]),ClassList[UNIQUE]),ClassList[UNIQUE],0),2),0)","v":0},{"$f":"IFERROR(INDEX(ClassList[],MATCH(SUMPRODUCT((ClassList[DAY]=ClassSchedule[[#Headers],[WEDNESDAY]])*(ROUNDDOWN($B7,10)>=ROUNDDOWN(ClassList[START TIME],10))*($B7<=ClassList[END TIME]),ClassList[UNIQUE]),ClassList[UNIQUE],0),2),0)","v":"MTH-113"},{"$f":"IFERROR(INDEX(ClassList[],MATCH(SUMPRODUCT((ClassList[DAY]=ClassSchedule[[#Headers],[THURSDAY]])*(ROUNDDOWN($B7,10)>=ROUNDDOWN(ClassList[START TIME],10))*($B7<=ClassList[END TIME]),ClassList[UNIQUE]),ClassList[UNIQUE],0),2),0)","v":0},{"$f":"IFERROR(INDEX(ClassList[],MATCH(SUMPRODUCT((ClassList[DAY]=ClassSchedule[[#Headers],[FRIDAY]])*(ROUNDDOWN($B7,10)>=ROUNDDOWN(ClassList[START TIME],10))*($B7<=ClassList[END TIME]),ClassList[UNIQUE]),ClassList[UNIQUE],0),2),0)","v":"MTH-113"},{"$f":"IFERROR(INDEX(ClassList[],MATCH(SUMPRODUCT((ClassList[DAY]=ClassSchedule[[#Headers],[SATURDAY]])*(ROUNDDOWN($B7,10)>=ROUNDDOWN(ClassList[START TIME],10))*($B7<=ClassList[END TIME]),ClassList[UNIQUE]),ClassList[UNIQUE],0),2),0)","v":0}]
[null,"08:30:00",{"$f":"IFERROR(INDEX(ClassList[],MATCH(SUMPRODUCT((ClassList[DAY]=ClassSchedule[[#Headers],[SUNDAY]])*(ROUNDDOWN($B8,10)>=ROUNDDOWN(ClassList[START TIME],10))*($B8<=ClassList[END TIME]),ClassList[UNIQUE]),ClassList[UNIQUE],0),2),0)","v":0},{"$f":"IFERROR(INDEX(ClassList[],MATCH(SUMPRODUCT((ClassList[DAY]=ClassSchedule[[#Headers],[MONDAY]])*(ROUNDDOWN($B8,10)>=ROUNDDOWN(ClassList[START TIME],10))*($B8<=ClassList[END TIME]),ClassList[UNIQUE]),ClassList[UNIQUE],0),2),0)","v":"MTH-113"},{"$f":"IFERROR(INDEX(ClassList[],MATCH(SUMPRODUCT((ClassList[DAY]=ClassSchedule[[#Headers],[TUESDAY]])*(ROUNDDOWN($B8,10)>=ROUNDDOWN(ClassList[START TIME],10))*($B8<=ClassList[END TIME]),ClassList[UNIQUE]),ClassList[UNIQUE],0),2),0)","v":0},{"$f":"IFERROR(INDEX(ClassList[],MATCH(SUMPRODUCT((ClassList[DAY]=ClassSchedule[[#Headers],[WEDNESDAY]])*(ROUNDDOWN($B8,10)>=ROUNDDOWN(ClassList[START TIME],10))*($B8<=ClassList[END TIME]),ClassList[UNIQUE]),ClassList[UNIQUE],0),2),0)","v":"MTH-113"},{"$f":"IFERROR(INDEX(ClassList[],MATCH(SUMPRODUCT((ClassList[DAY]=ClassSchedule[[#Headers],[THURSDAY]])*(ROUNDDOWN($B8,10)>=ROUNDDOWN(ClassList[START TIME],10))*($B8<=ClassList[END TIME]),ClassList[UNIQUE]),ClassList[UNIQUE],0),2),0)","v":0},{"$f":"IFERROR(INDEX(ClassList[],MATCH(SUMPRODUCT((ClassList[DAY]=ClassSchedule[[#Headers],[FRIDAY]])*(ROUNDDOWN($B8,10)>=ROUNDDOWN(ClassList[START TIME],10))*($B8<=ClassList[END TIME]),ClassList[UNIQUE]),ClassList[UNIQUE],0),2),0)","v":"MTH-113"},{"$f":"IFERROR(INDEX(ClassList[],MATCH(SUMPRODUCT((ClassList[DAY]=ClassSchedule[[#Headers],[SATURDAY]])*(ROUNDDOWN($B8,10)>=ROUNDDOWN(ClassList[START TIME],10))*($B8<=ClassList[END TIME]),ClassList[UNIQUE]),ClassList[UNIQUE],0),2),0)","v":0}]
[null,"08:45:00",{"$f":"IFERROR(INDEX(ClassList[],MATCH(SUMPRODUCT((ClassList[DAY]=ClassSchedule[[#Headers],[SUNDAY]])*(ROUNDDOWN($B9,10)>=ROUNDDOWN(ClassList[START TIME],10))*($B9<=ClassList[END TIME]),ClassList[UNIQUE]),ClassList[UNIQUE],0),2),0)","v":0},{"$f":"IFERROR(INDEX(ClassList[],MATCH(SUMPRODUCT((ClassList[DAY]=ClassSchedule[[#Headers],[MONDAY]])*(ROUNDDOWN($B9,10)>=ROUNDDOWN(ClassList[START TIME],10))*($B9<=ClassList[END TIME]),ClassList[UNIQUE]),ClassList[UNIQUE],0),2),0)","v":"MTH-113"},{"$f":"IFERROR(INDEX(ClassList[],MATCH(SUMPRODUCT((ClassList[DAY]=ClassSchedule[[#Headers],[TUESDAY]])*(ROUNDDOWN($B9,10)>=ROUNDDOWN(ClassList[START TIME],10))*($B9<=ClassList[END TIME]),ClassList[UNIQUE]),ClassList[UNIQUE],0),2),0)","v":0},{"$f":"IFERROR(INDEX(ClassList[],MATCH(SUMPRODUCT((ClassList[DAY]=ClassSchedule[[#Headers],[WEDNESDAY]])*(ROUNDDOWN($B9,10)>=ROUNDDOWN(ClassList[START TIME],10))*($B9<=ClassList[END TIME]),ClassList[UNIQUE]),ClassList[UNIQUE],0),2),0)","v":"MTH-113"},{"$f":"IFERROR(INDEX(ClassList[],MATCH(SUMPRODUCT((ClassList[DAY]=ClassSchedule[[#Headers],[THURSDAY]])*(ROUNDDOWN($B9,10)>=ROUNDDOWN(ClassList[START TIME],10))*($B9<=ClassList[END TIME]),ClassList[UNIQUE]),ClassList[UNIQUE],0),2),0)","v":0},{"$f":"IFERROR(INDEX(ClassList[],MATCH(SUMPRODUCT((ClassList[DAY]=ClassSchedule[[#Headers],[FRIDAY]])*(ROUNDDOWN($B9,10)>=ROUNDDOWN(ClassList[START TIME],10))*($B9<=ClassList[END TIME]),ClassList[UNIQUE]),ClassList[UNIQUE],0),2),0)","v":"MTH-113"},{"$f":"IFERROR(INDEX(ClassList[],MATCH(SUMPRODUCT((ClassList[DAY]=ClassSchedule[[#Headers],[SATURDAY]])*(ROUNDDOWN($B9,10)>=ROUNDDOWN(ClassList[START TIME],10))*($B9<=ClassList[END TIME]),ClassList[UNIQUE]),ClassList[UNIQUE],0),2),0)","v":0}]
[null,"09:00:00",{"$f":"IFERROR(INDEX(ClassList[],MATCH(SUMPRODUCT((ClassList[DAY]=ClassSchedule[[#Headers],[SUNDAY]])*(ROUNDDOWN($B10,10)>=ROUNDDOWN(ClassList[START TIME],10))*($B10<=ClassList[END TIME]),ClassList[UNIQUE]),ClassList[UNIQUE],0),2),0)","v":0},{"$f":"IFERROR(INDEX(ClassList[],MATCH(SUMPRODUCT((ClassList[DAY]=ClassSchedule[[#Headers],[MONDAY]])*(ROUNDDOWN($B10,10)>=ROUNDDOWN(ClassList[START TIME],10))*($B10<=ClassList[END TIME]),ClassList[UNIQUE]),ClassList[UNIQUE],0),2),0)","v":"MTH-113"},{"$f":"IFERROR(INDEX(ClassList[],MATCH(SUMPRODUCT((ClassList[DAY]=ClassSchedule[[#Headers],[TUESDAY]])*(ROUNDDOWN($B10,10)>=ROUNDDOWN(ClassList[START TIME],10))*($B10<=ClassList[END TIME]),ClassList[UNIQUE]),ClassList[UNIQUE],0),2),0)","v":0},{"$f":"IFERROR(INDEX(ClassList[],MATCH(SUMPRODUCT((ClassList[DAY]=ClassSchedule[[#Headers],[WEDNESDAY]])*(ROUNDDOWN($B10,10)>=ROUNDDOWN(ClassList[START TIME],10))*($B10<=ClassList[END TIME]),ClassList[UNIQUE]),ClassList[UNIQUE],0),2),0)","v":"MTH-113"},{"$f":"IFERROR(INDEX(ClassList[],MATCH(SUMPRODUCT((ClassList[DAY]=ClassSchedule[[#Headers],[THURSDAY]])*(ROUNDDOWN($B10,10)>=ROUNDDOWN(ClassList[START TIME],10))*($B10<=ClassList[END TIME]),ClassList[UNIQUE]),ClassList[UNIQUE],0),2),0)","v":0},{"$f":"IFERROR(INDEX(ClassList[],MATCH(SUMPRODUCT((ClassList[DAY]=ClassSchedule[[#Headers],[FRIDAY]])*(ROUNDDOWN($B10,10)>=ROUNDDOWN(ClassList[START TIME],10))*($B10<=ClassList[END TIME]),ClassList[UNIQUE]),ClassList[UNIQUE],0),2),0)","v":"MTH-113"},{"$f":"IFERROR(INDEX(ClassList[],MATCH(SUMPRODUCT((ClassList[DAY]=ClassSchedule[[#Headers],[SATURDAY]])*(ROUNDDOWN($B10,10)>=ROUNDDOWN(ClassList[START TIME],10))*($B10<=ClassList[END TIME]),ClassList[UNIQUE]),ClassList[UNIQUE],0),2),0)","v":0}]
[null,"09:15:00",{"$f":"IFERROR(INDEX(ClassList[],MATCH(SUMPRODUCT((ClassList[DAY]=ClassSchedule[[#Headers],[SUNDAY]])*(ROUNDDOWN($B11,10)>=ROUNDDOWN(ClassList[START TIME],10))*($B11<=ClassList[END TIME]),ClassList[UNIQUE]),ClassList[UNIQUE],0),2),0)","v":0},{"$f":"IFERROR(INDEX(ClassList[],MATCH(SUMPRODUCT((ClassList[DAY]=ClassSchedule[[#Headers],[MONDAY]])*(ROUNDDOWN($B11,10)>=ROUNDDOWN(ClassList[START TIME],10))*($B11<=ClassList[END TIME]),ClassList[UNIQUE]),ClassList[UNIQUE],0),2),0)","v":"MTH-113"},{"$f":"IFERROR(INDEX(ClassList[],MATCH(SUMPRODUCT((ClassList[DAY]=ClassSchedule[[#Headers],[TUESDAY]])*(ROUNDDOWN($B11,10)>=ROUNDDOWN(ClassList[START TIME],10))*($B11<=ClassList[END TIME]),ClassList[UNIQUE]),ClassList[UNIQUE],0),2),0)","v":0},{"$f":"IFERROR(INDEX(ClassList[],MATCH(SUMPRODUCT((ClassList[DAY]=ClassSchedule[[#Headers],[WEDNESDAY]])*(ROUNDDOWN($B11,10)>=ROUNDDOWN(ClassList[START TIME],10))*($B11<=ClassList[END TIME]),ClassList[UNIQUE]),ClassList[UNIQUE],0),2),0)","v":"MTH-113"},{"$f":"IFERROR(INDEX(ClassList[],MATCH(SUMPRODUCT((ClassList[DAY]=ClassSchedule[[#Headers],[THURSDAY]])*(ROUNDDOWN($B11,10)>=ROUNDDOWN(ClassList[START TIME],10))*($B11<=ClassList[END TIME]),ClassList[UNIQUE]),ClassList[UNIQUE],0),2),0)","v":0},{"$f":"IFERROR(INDEX(ClassList[],MATCH(SUMPRODUCT((ClassList[DAY]=ClassSchedule[[#Headers],[FRIDAY]])*(ROUNDDOWN($B11,10)>=ROUNDDOWN(ClassList[START TIME],10))*($B11<=ClassList[END TIME]),ClassList[UNIQUE]),ClassList[UNIQUE],0),2),0)","v":"MTH-113"},{"$f":"IFERROR(INDEX(ClassList[],MATCH(SUMPRODUCT((ClassList[DAY]=ClassSchedule[[#Headers],[SATURDAY]])*(ROUNDDOWN($B11,10)>=ROUNDDOWN(ClassList[START TIME],10))*($B11<=ClassList[END TIME]),ClassList[UNIQUE]),ClassList[UNIQUE],0),2),0)","v":0}]
[null,"09:30:00",{"$f":"IFERROR(INDEX(ClassList[],MATCH(SUMPRODUCT((ClassList[DAY]=ClassSchedule[[#Headers],[SUNDAY]])*(ROUNDDOWN($B12,10)>=ROUNDDOWN(ClassList[START TIME],10))*($B12<=ClassList[END TIME]),ClassList[UNIQUE]),ClassList[UNIQUE],0),2),0)","v":0},null,{"$f":"IFERROR(INDEX(ClassList[],MATCH(SUMPRODUCT((ClassList[DAY]=ClassSchedule[[#Headers],[TUESDAY]])*(ROUNDDOWN($B12,10)>=ROUNDDOWN(ClassList[START TIME],10))*($B12<=ClassList[END TIME]),ClassList[UNIQUE]),ClassList[UNIQUE],0),2),0)","v":0},{"$f":"IFERROR(INDEX(ClassList[],MATCH(SUMPRODUCT((ClassList[DAY]=ClassSchedule[[#Headers],[WEDNESDAY]])*(ROUNDDOWN($B12,10)>=ROUNDDOWN(ClassList[START TIME],10))*($B12<=ClassList[END TIME]),ClassList[UNIQUE]),ClassList[UNIQUE],0),2),0)","v":0},{"$f":"IFERROR(INDEX(ClassList[],MATCH(SUMPRODUCT((ClassList[DAY]=ClassSchedule[[#Headers],[THURSDAY]])*(ROUNDDOWN($B12,10)>=ROUNDDOWN(ClassList[START TIME],10))*($B12<=ClassList[END TIME]),ClassList[UNIQUE]),ClassList[UNIQUE],0),2),0)","v":0},{"$f":"IFERROR(INDEX(ClassList[],MATCH(SUMPRODUCT((ClassList[DAY]=ClassSchedule[[#Headers],[FRIDAY]])*(ROUNDDOWN($B12,10)>=ROUNDDOWN(ClassList[START TIME],10))*($B12<=ClassList[END TIME]),ClassList[UNIQUE]),ClassList[UNIQUE],0),2),0)","v":0},{"$f":"IFERROR(INDEX(ClassList[],MATCH(SUMPRODUCT((ClassList[DAY]=ClassSchedule[[#Headers],[SATURDAY]])*(ROUNDDOWN($B12,10)>=ROUNDDOWN(ClassList[START TIME],10))*($B12<=ClassList[END TIME]),ClassList[UNIQUE]),ClassList[UNIQUE],0),2),0)","v":0}]
[null,"09:45:00",{"$f":"IFERROR(INDEX(ClassList[],MATCH(SUMPRODUCT((ClassList[DAY]=ClassSchedule[[#Headers],[SUNDAY]])*(ROUNDDOWN($B13,10)>=ROUNDDOWN(ClassList[START TIME],10))*($B13<=ClassList[END TIME]),ClassList[UNIQUE]),ClassList[UNIQUE],0),2),0)","v":0},{"$f":"IFERROR(INDEX(ClassList[],MATCH(SUMPRODUCT((ClassList[DAY]=ClassSchedule[[#Headers],[MONDAY]])*(ROUNDDOWN($B13,10)>=ROUNDDOWN(ClassList[START TIME],10))*($B13<=ClassList[END TIME]),ClassList[UNIQUE]),ClassList[UNIQUE],0),2),0)","v":0},{"$f":"IFERROR(INDEX(ClassList[],MATCH(SUMPRODUCT((ClassList[DAY]=ClassSchedule[[#Headers],[TUESDAY]])*(ROUNDDOWN($B13,10)>=ROUNDDOWN(ClassList[START TIME],10))*($B13<=ClassList[END TIME]),ClassList[UNIQUE]),ClassList[UNIQUE],0),2),0)","v":0},{"$f":"IFERROR(INDEX(ClassList[],MATCH(SUMPRODUCT((ClassList[DAY]=ClassSchedule[[#Headers],[WEDNESDAY]])*(ROUNDDOWN($B13,10)>=ROUNDDOWN(ClassList[START TIME],10))*($B13<=ClassList[END TIME]),ClassList[UNIQUE]),ClassList[UNIQUE],0),2),0)","v":0},{"$f":"IFERROR(INDEX(ClassList[],MATCH(SUMPRODUCT((ClassList[DAY]=ClassSchedule[[#Headers],[THURSDAY]])*(ROUNDDOWN($B13,10)>=ROUNDDOWN(ClassList[START TIME],10))*($B13<=ClassList[END TIME]),ClassList[UNIQUE]),ClassList[UNIQUE],0),2),0)","v":0},{"$f":"IFERROR(INDEX(ClassList[],MATCH(SUMPRODUCT((ClassList[DAY]=ClassSchedule[[#Headers],[FRIDAY]])*(ROUNDDOWN($B13,10)>=ROUNDDOWN(ClassList[START TIME],10))*($B13<=ClassList[END TIME]),ClassList[UNIQUE]),ClassList[UNIQUE],0),2),0)","v":0},{"$f":"IFERROR(INDEX(ClassList[],MATCH(SUMPRODUCT((ClassList[DAY]=ClassSchedule[[#Headers],[SATURDAY]])*(ROUNDDOWN($B13,10)>=ROUNDDOWN(ClassList[START TIME],10))*($B13<=ClassList[END TIME]),ClassList[UNIQUE]),ClassList[UNIQUE],0),2),0)","v":0}]
[null,"10:00:00",{"$f":"IFERROR(INDEX(ClassList[],MATCH(SUMPRODUCT((ClassList[DAY]=ClassSchedule[[#Headers],[SUNDAY]])*(ROUNDDOWN($B14,10)>=ROUNDDOWN(ClassList[START TIME],10))*($B14<=ClassList[END TIME]),ClassList[UNIQUE]),ClassList[UNIQUE],0),2),0)","v":0},{"$f":"IFERROR(INDEX(ClassList[],MATCH(SUMPRODUCT((ClassList[DAY]=ClassSchedule[[#Headers],[MONDAY]])*(ROUNDDOWN($B14,10)>=ROUNDDOWN(ClassList[START TIME],10))*($B14<=ClassList[END TIME]),ClassList[UNIQUE]),ClassList[UNIQUE],0),2),0)","v":0},{"$f":"IFERROR(INDEX(ClassList[],MATCH(SUMPRODUCT((ClassList[DAY]=ClassSchedule[[#Headers],[TUESDAY]])*(ROUNDDOWN($B14,10)>=ROUNDDOWN(ClassList[START TIME],10))*($B14<=ClassList[END TIME]),ClassList[UNIQUE]),ClassList[UNIQUE],0),2),0)","v":0},{"$f":"IFERROR(INDEX(ClassList[],MATCH(SUMPRODUCT((ClassList[DAY]=ClassSchedule[[#Headers],[WEDNESDAY]])*(ROUNDDOWN($B14,10)>=ROUNDDOWN(ClassList[START TIME],10))*($B14<=ClassList[END TIME]),ClassList[UNIQUE]),ClassList[UNIQUE],0),2),0)","v":0},{"$f":"IFERROR(INDEX(ClassList[],MATCH(SUMPRODUCT((ClassList[DAY]=ClassSchedule[[#Headers],[THURSDAY]])*(ROUNDDOWN($B14,10)>=ROUNDDOWN(ClassList[START TIME],10))*($B14<=ClassList[END TIME]),ClassList[UNIQUE]),ClassList[UNIQUE],0),2),0)","v":0},{"$f":"IFERROR(INDEX(ClassList[],MATCH(SUMPRODUCT((ClassList[DAY]=ClassSchedule[[#Headers],[FRIDAY]])*(ROUNDDOWN($B14,10)>=ROUNDDOWN(ClassList[START TIME],10))*($B14<=ClassList[END TIME]),ClassList[UNIQUE]),ClassList[UNIQUE],0),2),0)","v":0},{"$f":"IFERROR(INDEX(ClassList[],MATCH(SUMPRODUCT((ClassList[DAY]=ClassSchedule[[#Headers],[SATURDAY]])*(ROUNDDOWN($B14,10)>=ROUNDDOWN(ClassList[START TIME],10))*($B14<=ClassList[END TIME]),ClassList[UNIQUE]),ClassList[UNIQUE],0),2),0)","v":0}]
[null,"10:15:00",{"$f":"IFERROR(INDEX(ClassList[],MATCH(SUMPRODUCT((ClassList[DAY]=ClassSchedule[[#Headers],[SUNDAY]])*(ROUNDDOWN($B15,10)>=ROUNDDOWN(ClassList[START TIME],10))*($B15<=ClassList[END TIME]),ClassList[UNIQUE]),ClassList[UNIQUE],0),2),0)","v":0},{"$f":"IFERROR(INDEX(ClassList[],MATCH(SUMPRODUCT((ClassList[DAY]=ClassSchedule[[#Headers],[MONDAY]])*(ROUNDDOWN($B15,10)>=ROUNDDOWN(ClassList[START TIME],10))*($B15<=ClassList[END TIME]),ClassList[UNIQUE]),ClassList[UNIQUE],0),2),0)","v":0},{"$f":"IFERROR(INDEX(ClassList[],MATCH(SUMPRODUCT((ClassList[DAY]=ClassSchedule[[#Headers],[TUESDAY]])*(ROUNDDOWN($B15,10)>=ROUNDDOWN(ClassList[START TIME],10))*($B15<=ClassList[END TIME]),ClassList[UNIQUE]),ClassList[UNIQUE],0),2),0)","v":0},{"$f":"IFERROR(INDEX(ClassList[],MATCH(SUMPRODUCT((ClassList[DAY]=ClassSchedule[[#Headers],[WEDNESDAY]])*(ROUNDDOWN($B15,10)>=ROUNDDOWN(ClassList[START TIME],10))*($B15<=ClassList[END TIME]),ClassList[UNIQUE]),ClassList[UNIQUE],0),2),0)","v":0},{"$f":"IFERROR(INDEX(ClassList[],MATCH(SUMPRODUCT((ClassList[DAY]=ClassSchedule[[#Headers],[THURSDAY]])*(ROUNDDOWN($B15,10)>=ROUNDDOWN(ClassList[START TIME],10))*($B15<=ClassList[END TIME]),ClassList[UNIQUE]),ClassList[UNIQUE],0),2),0)","v":0},{"$f":"IFERROR(INDEX(ClassList[],MATCH(SUMPRODUCT((ClassList[DAY]=ClassSchedule[[#Headers],[FRIDAY]])*(ROUNDDOWN($B15,10)>=ROUNDDOWN(ClassList[START TIME],10))*($B15<=ClassList[END TIME]),ClassList[UNIQUE]),ClassList[UNIQUE],0),2),0)","v":0},{"$f":"IFERROR(INDEX(ClassList[],MATCH(SUMPRODUCT((ClassList[DAY]=ClassSchedule[[#Headers],[SATURDAY]])*(ROUNDDOWN($B15,10)>=ROUNDDOWN(ClassList[START TIME],10))*($B15<=ClassList[END TIME]),ClassList[UNIQUE]),ClassList[UNIQUE],0),2),0)","v":0}]
[null,"10:30:00",{"$f":"IFERROR(INDEX(ClassList[],MATCH(SUMPRODUCT((ClassList[DAY]=ClassSchedule[[#Headers],[SUNDAY]])*(ROUNDDOWN($B16,10)>=ROUNDDOWN(ClassList[START TIME],10))*($B16<=ClassList[END TIME]),ClassList[UNIQUE]),ClassList[UNIQUE],0),2),0)","v":0},{"$f":"IFERROR(INDEX(ClassList[],MATCH(SUMPRODUCT((ClassList[DAY]=ClassSchedule[[#Headers],[MONDAY]])*(ROUNDDOWN($B16,10)>=ROUNDDOWN(ClassList[START TIME],10))*($B16<=ClassList[END TIME]),ClassList[UNIQUE]),ClassList[UNIQUE],0),2),0)","v":0},{"$f":"IFERROR(INDEX(ClassList[],MATCH(SUMPRODUCT((ClassList[DAY]=ClassSchedule[[#Headers],[TUESDAY]])*(ROUNDDOWN($B16,10)>=ROUNDDOWN(ClassList[START TIME],10))*($B16<=ClassList[END TIME]),ClassList[UNIQUE]),ClassList[UNIQUE],0),2),0)","v":0},{"$f":"IFERROR(INDEX(ClassList[],MATCH(SUMPRODUCT((ClassList[DAY]=ClassSchedule[[#Headers],[WEDNESDAY]])*(ROUNDDOWN($B16,10)>=ROUNDDOWN(ClassList[START TIME],10))*($B16<=ClassList[END TIME]),ClassList[UNIQUE]),ClassList[UNIQUE],0),2),0)","v":0},{"$f":"IFERROR(INDEX(ClassList[],MATCH(SUMPRODUCT((ClassList[DAY]=ClassSchedule[[#Headers],[THURSDAY]])*(ROUNDDOWN($B16,10)>=ROUNDDOWN(ClassList[START TIME],10))*($B16<=ClassList[END TIME]),ClassList[UNIQUE]),ClassList[UNIQUE],0),2),0)","v":0},{"$f":"IFERROR(INDEX(ClassList[],MATCH(SUMPRODUCT((ClassList[DAY]=ClassSchedule[[#Headers],[FRIDAY]])*(ROUNDDOWN($B16,10)>=ROUNDDOWN(ClassList[START TIME],10))*($B16<=ClassList[END TIME]),ClassList[UNIQUE]),ClassList[UNIQUE],0),2),0)","v":0},{"$f":"IFERROR(INDEX(ClassList[],MATCH(SUMPRODUCT((ClassList[DAY]=ClassSchedule[[#Headers],[SATURDAY]])*(ROUNDDOWN($B16,10)>=ROUNDDOWN(ClassList[START TIME],10))*($B16<=ClassList[END TIME]),ClassList[UNIQUE]),ClassList[UNIQUE],0),2),0)","v":0}]
[null,"10:45:00",{"$f":"IFERROR(INDEX(ClassList[],MATCH(SUMPRODUCT((ClassList[DAY]=ClassSchedule[[#Headers],[SUNDAY]])*(ROUNDDOWN($B17,10)>=ROUNDDOWN(ClassList[START TIME],10))*($B17<=ClassList[END TIME]),ClassList[UNIQUE]),ClassList[UNIQUE],0),2),0)","v":0},{"$f":"IFERROR(INDEX(ClassList[],MATCH(SUMPRODUCT((ClassList[DAY]=ClassSchedule[[#Headers],[MONDAY]])*(ROUNDDOWN($B17,10)>=ROUNDDOWN(ClassList[START TIME],10))*($B17<=ClassList[END TIME]),ClassList[UNIQUE]),ClassList[UNIQUE],0),2),0)","v":0},{"$f":"IFERROR(INDEX(ClassList[],MATCH(SUMPRODUCT((ClassList[DAY]=ClassSchedule[[#Headers],[TUESDAY]])*(ROUNDDOWN($B17,10)>=ROUNDDOWN(ClassList[START TIME],10))*($B17<=ClassList[END TIME]),ClassList[UNIQUE]),ClassList[UNIQUE],0),2),0)","v":0},{"$f":"IFERROR(INDEX(ClassList[],MATCH(SUMPRODUCT((ClassList[DAY]=ClassSchedule[[#Headers],[WEDNESDAY]])*(ROUNDDOWN($B17,10)>=ROUNDDOWN(ClassList[START TIME],10))*($B17<=ClassList[END TIME]),ClassList[UNIQUE]),ClassList[UNIQUE],0),2),0)","v":0},{"$f":"IFERROR(INDEX(ClassList[],MATCH(SUMPRODUCT((ClassList[DAY]=ClassSchedule[[#Headers],[THURSDAY]])*(ROUNDDOWN($B17,10)>=ROUNDDOWN(ClassList[START TIME],10))*($B17<=ClassList[END TIME]),ClassList[UNIQUE]),ClassList[UNIQUE],0),2),0)","v":0},{"$f":"IFERROR(INDEX(ClassList[],MATCH(SUMPRODUCT((ClassList[DAY]=ClassSchedule[[#Headers],[FRIDAY]])*(ROUNDDOWN($B17,10)>=ROUNDDOWN(ClassList[START TIME],10))*($B17<=ClassList[END TIME]),ClassList[UNIQUE]),ClassList[UNIQUE],0),2),0)","v":0},{"$f":"IFERROR(INDEX(ClassList[],MATCH(SUMPRODUCT((ClassList[DAY]=ClassSchedule[[#Headers],[SATURDAY]])*(ROUNDDOWN($B17,10)>=ROUNDDOWN(ClassList[START TIME],10))*($B17<=ClassList[END TIME]),ClassList[UNIQUE]),ClassList[UNIQUE],0),2),0)","v":0}]
[null,"11:00:00",{"$f":"IFERROR(INDEX(ClassList[],MATCH(SUMPRODUCT((ClassList[DAY]=ClassSchedule[[#Headers],[SUNDAY]])*(ROUNDDOWN($B18,10)>=ROUNDDOWN(ClassList[START TIME],10))*($B18<=ClassList[END TIME]),ClassList[UNIQUE]),ClassList[UNIQUE],0),2),0)","v":0},{"$f":"IFERROR(INDEX(ClassList[],MATCH(SUMPRODUCT((ClassList[DAY]=ClassSchedule[[#Headers],[MONDAY]])*(ROUNDDOWN($B18,10)>=ROUNDDOWN(ClassList[START TIME],10))*($B18<=ClassList[END TIME]),ClassList[UNIQUE]),ClassList[UNIQUE],0),2),0)","v":0},{"$f":"IFERROR(INDEX(ClassList[],MATCH(SUMPRODUCT((ClassList[DAY]=ClassSchedule[[#Headers],[TUESDAY]])*(ROUNDDOWN($B18,10)>=ROUNDDOWN(ClassList[START TIME],10))*($B18<=ClassList[END TIME]),ClassList[UNIQUE]),ClassList[UNIQUE],0),2),0)","v":"HPE-295"},{"$f":"IFERROR(INDEX(ClassList[],MATCH(SUMPRODUCT((ClassList[DAY]=ClassSchedule[[#Headers],[WEDNESDAY]])*(ROUNDDOWN($B18,10)>=ROUNDDOWN(ClassList[START TIME],10))*($B18<=ClassList[END TIME]),ClassList[UNIQUE]),ClassList[UNIQUE],0),2),0)","v":0},{"$f":"IFERROR(INDEX(ClassList[],MATCH(SUMPRODUCT((ClassList[DAY]=ClassSchedule[[#Headers],[THURSDAY]])*(ROUNDDOWN($B18,10)>=ROUNDDOWN(ClassList[START TIME],10))*($B18<=ClassList[END TIME]),ClassList[UNIQUE]),ClassList[UNIQUE],0),2),0)","v":"HPE-295"},{"$f":"IFERROR(INDEX(ClassList[],MATCH(SUMPRODUCT((ClassList[DAY]=ClassSchedule[[#Headers],[FRIDAY]])*(ROUNDDOWN($B18,10)>=ROUNDDOWN(ClassList[START TIME],10))*($B18<=ClassList[END TIME]),ClassList[UNIQUE]),ClassList[UNIQUE],0),2),0)","v":0},{"$f":"IFERROR(INDEX(ClassList[],MATCH(SUMPRODUCT((ClassList[DAY]=ClassSchedule[[#Headers],[SATURDAY]])*(ROUNDDOWN($B18,10)>=ROUNDDOWN(ClassList[START TIME],10))*($B18<=ClassList[END TIME]),ClassList[UNIQUE]),ClassList[UNIQUE],0),2),0)","v":0}]
[null,"11:15:00",{"$f":"IFERROR(INDEX(ClassList[],MATCH(SUMPRODUCT((ClassList[DAY]=ClassSchedule[[#Headers],[SUNDAY]])*(ROUNDDOWN($B19,10)>=ROUNDDOWN(ClassList[START TIME],10))*($B19<=ClassList[END TIME]),ClassList[UNIQUE]),ClassList[UNIQUE],0),2),0)","v":0},{"$f":"IFERROR(INDEX(ClassList[],MATCH(SUMPRODUCT((ClassList[DAY]=ClassSchedule[[#Headers],[MONDAY]])*(ROUNDDOWN($B19,10)>=ROUNDDOWN(ClassList[START TIME],10))*($B19<=ClassList[END TIME]),ClassList[UNIQUE]),ClassList[UNIQUE],0),2),0)","v":0},{"$f":"IFERROR(INDEX(ClassList[],MATCH(SUMPRODUCT((ClassList[DAY]=ClassSchedule[[#Headers],[TUESDAY]])*(ROUNDDOWN($B19,10)>=ROUNDDOWN(ClassList[START TIME],10))*($B19<=ClassList[END TIME]),ClassList[UNIQUE]),ClassList[UNIQUE],0),2),0)","v":"HPE-295"},{"$f":"IFERROR(INDEX(ClassList[],MATCH(SUMPRODUCT((ClassList[DAY]=ClassSchedule[[#Headers],[WEDNESDAY]])*(ROUNDDOWN($B19,10)>=ROUNDDOWN(ClassList[START TIME],10))*($B19<=ClassList[END TIME]),ClassList[UNIQUE]),ClassList[UNIQUE],0),2),0)","v":0},{"$f":"IFERROR(INDEX(ClassList[],MATCH(SUMPRODUCT((ClassList[DAY]=ClassSchedule[[#Headers],[THURSDAY]])*(ROUNDDOWN($B19,10)>=ROUNDDOWN(ClassList[START TIME],10))*($B19<=ClassList[END TIME]),ClassList[UNIQUE]),ClassList[UNIQUE],0),2),0)","v":"HPE-295"},{"$f":"IFERROR(INDEX(ClassList[],MATCH(SUMPRODUCT((ClassList[DAY]=ClassSchedule[[#Headers],[FRIDAY]])*(ROUNDDOWN($B19,10)>=ROUNDDOWN(ClassList[START TIME],10))*($B19<=ClassList[END TIME]),ClassList[UNIQUE]),ClassList[UNIQUE],0),2),0)","v":0},{"$f":"IFERROR(INDEX(ClassList[],MATCH(SUMPRODUCT((ClassList[DAY]=ClassSchedule[[#Headers],[SATURDAY]])*(ROUNDDOWN($B19,10)>=ROUNDDOWN(ClassList[START TIME],10))*($B19<=ClassList[END TIME]),ClassList[UNIQUE]),ClassList[UNIQUE],0),2),0)","v":0}]
[null,"11:30:00",{"$f":"IFERROR(INDEX(ClassList[],MATCH(SUMPRODUCT((ClassList[DAY]=ClassSchedule[[#Headers],[SUNDAY]])*(ROUNDDOWN($B20,10)>=ROUNDDOWN(ClassList[START TIME],10))*($B20<=ClassList[END TIME]),ClassList[UNIQUE]),ClassList[UNIQUE],0),2),0)","v":0},{"$f":"IFERROR(INDEX(ClassList[],MATCH(SUMPRODUCT((ClassList[DAY]=ClassSchedule[[#Headers],[MONDAY]])*(ROUNDDOWN($B20,10)>=ROUNDDOWN(ClassList[START TIME],10))*($B20<=ClassList[END TIME]),ClassList[UNIQUE]),ClassList[UNIQUE],0),2),0)","v":0},{"$f":"IFERROR(INDEX(ClassList[],MATCH(SUMPRODUCT((ClassList[DAY]=ClassSchedule[[#Headers],[TUESDAY]])*(ROUNDDOWN($B20,10)>=ROUNDDOWN(ClassList[START TIME],10))*($B20<=ClassList[END TIME]),ClassList[UNIQUE]),ClassList[UNIQUE],0),2),0)","v":"HPE-295"},{"$f":"IFERROR(INDEX(ClassList[],MATCH(SUMPRODUCT((ClassList[DAY]=ClassSchedule[[#Headers],[WEDNESDAY]])*(ROUNDDOWN($B20,10)>=ROUNDDOWN(ClassList[START TIME],10))*($B20<=ClassList[END TIME]),ClassList[UNIQUE]),ClassList[UNIQUE],0),2),0)","v":0},{"$f":"IFERROR(INDEX(ClassList[],MATCH(SUMPRODUCT((ClassList[DAY]=ClassSchedule[[#Headers],[THURSDAY]])*(ROUNDDOWN($B20,10)>=ROUNDDOWN(ClassList[START TIME],10))*($B20<=ClassList[END TIME]),ClassList[UNIQUE]),ClassList[UNIQUE],0),2),0)","v":"HPE-295"},{"$f":"IFERROR(INDEX(ClassList[],MATCH(SUMPRODUCT((ClassList[DAY]=ClassSchedule[[#Headers],[FRIDAY]])*(ROUNDDOWN($B20,10)>=ROUNDDOWN(ClassList[START TIME],10))*($B20<=ClassList[END TIME]),ClassList[UNIQUE]),ClassList[UNIQUE],0),2),0)","v":0},{"$f":"IFERROR(INDEX(ClassList[],MATCH(SUMPRODUCT((ClassList[DAY]=ClassSchedule[[#Headers],[SATURDAY]])*(ROUNDDOWN($B20,10)>=ROUNDDOWN(ClassList[START TIME],10))*($B20<=ClassList[END TIME]),ClassList[UNIQUE]),ClassList[UNIQUE],0),2),0)","v":0}]
[null,"11:45:00",{"$f":"IFERROR(INDEX(ClassList[],MATCH(SUMPRODUCT((ClassList[DAY]=ClassSchedule[[#Headers],[SUNDAY]])*(ROUNDDOWN($B21,10)>=ROUNDDOWN(ClassList[START TIME],10))*($B21<=ClassList[END TIME]),ClassList[UNIQUE]),ClassList[UNIQUE],0),2),0)","v":0},{"$f":"IFERROR(INDEX(ClassList[],MATCH(SUMPRODUCT((ClassList[DAY]=ClassSchedule[[#Headers],[MONDAY]])*(ROUNDDOWN($B21,10)>=ROUNDDOWN(ClassList[START TIME],10))*($B21<=ClassList[END TIME]),ClassList[UNIQUE]),ClassList[UNIQUE],0),2),0)","v":0},{"$f":"IFERROR(INDEX(ClassList[],MATCH(SUMPRODUCT((ClassList[DAY]=ClassSchedule[[#Headers],[TUESDAY]])*(ROUNDDOWN($B21,10)>=ROUNDDOWN(ClassList[START TIME],10))*($B21<=ClassList[END TIME]),ClassList[UNIQUE]),ClassList[UNIQUE],0),2),0)","v":"HPE-295"},{"$f":"IFERROR(INDEX(ClassList[],MATCH(SUMPRODUCT((ClassList[DAY]=ClassSchedule[[#Headers],[WEDNESDAY]])*(ROUNDDOWN($B21,10)>=ROUNDDOWN(ClassList[START TIME],10))*($B21<=ClassList[END TIME]),ClassList[UNIQUE]),ClassList[UNIQUE],0),2),0)","v":0},{"$f":"IFERROR(INDEX(ClassList[],MATCH(SUMPRODUCT((ClassList[DAY]=ClassSchedule[[#Headers],[THURSDAY]])*(ROUNDDOWN($B21,10)>=ROUNDDOWN(ClassList[START TIME],10))*($B21<=ClassList[END TIME]),ClassList[UNIQUE]),ClassList[UNIQUE],0),2),0)","v":"HPE-295"},{"$f":"IFERROR(INDEX(ClassList[],MATCH(SUMPRODUCT((ClassList[DAY]=ClassSchedule[[#Headers],[FRIDAY]])*(ROUNDDOWN($B21,10)>=ROUNDDOWN(ClassList[START TIME],10))*($B21<=ClassList[END TIME]),ClassList[UNIQUE]),ClassList[UNIQUE],0),2),0)","v":0},{"$f":"IFERROR(INDEX(ClassList[],MATCH(SUMPRODUCT((ClassList[DAY]=ClassSchedule[[#Headers],[SATURDAY]])*(ROUNDDOWN($B21,10)>=ROUNDDOWN(ClassList[START TIME],10))*($B21<=ClassList[END TIME]),ClassList[UNIQUE]),ClassList[UNIQUE],0),2),0)","v":0}]
[null,"12:00:00",{"$f":"IFERROR(INDEX(ClassList[],MATCH(SUMPRODUCT((ClassList[DAY]=ClassSchedule[[#Headers],[SUNDAY]])*(ROUNDDOWN($B22,10)>=ROUNDDOWN(ClassList[START TIME],10))*($B22<=ClassList[END TIME]),ClassList[UNIQUE]),ClassList[UNIQUE],0),2),0)","v":0},{"$f":"IFERROR(INDEX(ClassList[],MATCH(SUMPRODUCT((ClassList[DAY]=ClassSchedule[[#Headers],[MONDAY]])*(ROUNDDOWN($B22,10)>=ROUNDDOWN(ClassList[START TIME],10))*($B22<=ClassList[END TIME]),ClassList[UNIQUE]),ClassList[UNIQUE],0),2),0)","v":0},{"$f":"IFERROR(INDEX(ClassList[],MATCH(SUMPRODUCT((ClassList[DAY]=ClassSchedule[[#Headers],[TUESDAY]])*(ROUNDDOWN($B22,10)>=ROUNDDOWN(ClassList[START TIME],10))*($B22<=ClassList[END TIME]),ClassList[UNIQUE]),ClassList[UNIQUE],0),2),0)","v":"HPE-295"},{"$f":"IFERROR(INDEX(ClassList[],MATCH(SUMPRODUCT((ClassList[DAY]=ClassSchedule[[#Headers],[WEDNESDAY]])*(ROUNDDOWN($B22,10)>=ROUNDDOWN(ClassList[START TIME],10))*($B22<=ClassList[END TIME]),ClassList[UNIQUE]),ClassList[UNIQUE],0),2),0)","v":0},{"$f":"IFERROR(INDEX(ClassList[],MATCH(SUMPRODUCT((ClassList[DAY]=ClassSchedule[[#Headers],[THURSDAY]])*(ROUNDDOWN($B22,10)>=ROUNDDOWN(ClassList[START TIME],10))*($B22<=ClassList[END TIME]),ClassList[UNIQUE]),ClassList[UNIQUE],0),2),0)","v":"HPE-295"},{"$f":"IFERROR(INDEX(ClassList[],MATCH(SUMPRODUCT((ClassList[DAY]=ClassSchedule[[#Headers],[FRIDAY]])*(ROUNDDOWN($B22,10)>=ROUNDDOWN(ClassList[START TIME],10))*($B22<=ClassList[END TIME]),ClassList[UNIQUE]),ClassList[UNIQUE],0),2),0)","v":0},{"$f":"IFERROR(INDEX(ClassList[],MATCH(SUMPRODUCT((ClassList[DAY]=ClassSchedule[[#Headers],[SATURDAY]])*(ROUNDDOWN($B22,10)>=ROUNDDOWN(ClassList[START TIME],10))*($B22<=ClassList[END TIME]),ClassList[UNIQUE]),ClassList[UNIQUE],0),2),0)","v":0}]
[null,"12:15:00",{"$f":"IFERROR(INDEX(ClassList[],MATCH(SUMPRODUCT((ClassList[DAY]=ClassSchedule[[#Headers],[SUNDAY]])*(ROUNDDOWN($B23,10)>=ROUNDDOWN(ClassList[START TIME],10))*($B23<=ClassList[END TIME]),ClassList[UNIQUE]),ClassList[UNIQUE],0),2),0)","v":0},{"$f":"IFERROR(INDEX(ClassList[],MATCH(SUMPRODUCT((ClassList[DAY]=ClassSchedule[[#Headers],[MONDAY]])*(ROUNDDOWN($B23,10)>=ROUNDDOWN(ClassList[START TIME],10))*($B23<=ClassList[END TIME]),ClassList[UNIQUE]),ClassList[UNIQUE],0),2),0)","v":0},{"$f":"IFERROR(INDEX(ClassList[],MATCH(SUMPRODUCT((ClassList[DAY]=ClassSchedule[[#Headers],[TUESDAY]])*(ROUNDDOWN($B23,10)>=ROUNDDOWN(ClassList[START TIME],10))*($B23<=ClassList[END TIME]),ClassList[UNIQUE]),ClassList[UNIQUE],0),2),0)","v":0},{"$f":"IFERROR(INDEX(ClassList[],MATCH(SUMPRODUCT((ClassList[DAY]=ClassSchedule[[#Headers],[WEDNESDAY]])*(ROUNDDOWN($B23,10)>=ROUNDDOWN(ClassList[START TIME],10))*($B23<=ClassList[END TIME]),ClassList[UNIQUE]),ClassList[UNIQUE],0),2),0)","v":0},{"$f":"IFERROR(INDEX(ClassList[],MATCH(SUMPRODUCT((ClassList[DAY]=ClassSchedule[[#Headers],[THURSDAY]])*(ROUNDDOWN($B23,10)>=ROUNDDOWN(ClassList[START TIME],10))*($B23<=ClassList[END TIME]),ClassList[UNIQUE]),ClassList[UNIQUE],0),2),0)","v":0},{"$f":"IFERROR(INDEX(ClassList[],MATCH(SUMPRODUCT((ClassList[DAY]=ClassSchedule[[#Headers],[FRIDAY]])*(ROUNDDOWN($B23,10)>=ROUNDDOWN(ClassList[START TIME],10))*($B23<=ClassList[END TIME]),ClassList[UNIQUE]),ClassList[UNIQUE],0),2),0)","v":0},{"$f":"IFERROR(INDEX(ClassList[],MATCH(SUMPRODUCT((ClassList[DAY]=ClassSchedule[[#Headers],[SATURDAY]])*(ROUNDDOWN($B23,10)>=ROUNDDOWN(ClassList[START TIME],10))*($B23<=ClassList[END TIME]),ClassList[UNIQUE]),ClassList[UNIQUE],0),2),0)","v":0}]
[null,"12:30:00",{"$f":"IFERROR(INDEX(ClassList[],MATCH(SUMPRODUCT((ClassList[DAY]=ClassSchedule[[#Headers],[SUNDAY]])*(ROUNDDOWN($B24,10)>=ROUNDDOWN(ClassList[START TIME],10))*($B24<=ClassList[END TIME]),ClassList[UNIQUE]),ClassList[UNIQUE],0),2),0)","v":0},{"$f":"IFERROR(INDEX(ClassList[],MATCH(SUMPRODUCT((ClassList[DAY]=ClassSchedule[[#Headers],[MONDAY]])*(ROUNDDOWN($B24,10)>=ROUNDDOWN(ClassList[START TIME],10))*($B24<=ClassList[END TIME]),ClassList[UNIQUE]),ClassList[UNIQUE],0),2),0)","v":0},{"$f":"IFERROR(INDEX(ClassList[],MATCH(SUMPRODUCT((ClassList[DAY]=ClassSchedule[[#Headers],[TUESDAY]])*(ROUNDDOWN($B24,10)>=ROUNDDOWN(ClassList[START TIME],10))*($B24<=ClassList[END TIME]),ClassList[UNIQUE]),ClassList[UNIQUE],0),2),0)","v":0},{"$f":"IFERROR(INDEX(ClassList[],MATCH(SUMPRODUCT((ClassList[DAY]=ClassSchedule[[#Headers],[WEDNESDAY]])*(ROUNDDOWN($B24,10)>=ROUNDDOWN(ClassList[START TIME],10))*($B24<=ClassList[END TIME]),ClassList[UNIQUE]),ClassList[UNIQUE],0),2),0)","v":0},{"$f":"IFERROR(INDEX(ClassList[],MATCH(SUMPRODUCT((ClassList[DAY]=ClassSchedule[[#Headers],[THURSDAY]])*(ROUNDDOWN($B24,10)>=ROUNDDOWN(ClassList[START TIME],10))*($B24<=ClassList[END TIME]),ClassList[UNIQUE]),ClassList[UNIQUE],0),2),0)","v":0},{"$f":"IFERROR(INDEX(ClassList[],MATCH(SUMPRODUCT((ClassList[DAY]=ClassSchedule[[#Headers],[FRIDAY]])*(ROUNDDOWN($B24,10)>=ROUNDDOWN(ClassList[START TIME],10))*($B24<=ClassList[END TIME]),ClassList[UNIQUE]),ClassList[UNIQUE],0),2),0)","v":0},{"$f":"IFERROR(INDEX(ClassList[],MATCH(SUMPRODUCT((ClassList[DAY]=ClassSchedule[[#Headers],[SATURDAY]])*(ROUNDDOWN($B24,10)>=ROUNDDOWN(ClassList[START TIME],10))*($B24<=ClassList[END TIME]),ClassList[UNIQUE]),ClassList[UNIQUE],0),2),0)","v":0}]
[null,"12:45:00",{"$f":"IFERROR(INDEX(ClassList[],MATCH(SUMPRODUCT((ClassList[DAY]=ClassSchedule[[#Headers],[SUNDAY]])*(ROUNDDOWN($B25,10)>=ROUNDDOWN(ClassList[START TIME],10))*($B25<=ClassList[END TIME]),ClassList[UNIQUE]),ClassList[UNIQUE],0),2),0)","v":0},{"$f":"IFERROR(INDEX(ClassList[],MATCH(SUMPRODUCT((ClassList[DAY]=ClassSchedule[[#Headers],[MONDAY]])*(ROUNDDOWN($B25,10)>=ROUNDDOWN(ClassList[START TIME],10))*($B25<=ClassList[END TIME]),ClassList[UNIQUE]),ClassList[UNIQUE],0),2),0)","v":0},{"$f":"IFERROR(INDEX(ClassList[],MATCH(SUMPRODUCT((ClassList[DAY]=ClassSchedule[[#Headers],[TUESDAY]])*(ROUNDDOWN($B25,10)>=ROUNDDOWN(ClassList[START TIME],10))*($B25<=ClassList[END TIME]),ClassList[UNIQUE]),ClassList[UNIQUE],0),2),0)","v":0},{"$f":"IFERROR(INDEX(ClassList[],MATCH(SUMPRODUCT((ClassList[DAY]=ClassSchedule[[#Headers],[WEDNESDAY]])*(ROUNDDOWN($B25,10)>=ROUNDDOWN(ClassList[START TIME],10))*($B25<=ClassList[END TIME]),ClassList[UNIQUE]),ClassList[UNIQUE],0),2),0)","v":0},{"$f":"IFERROR(INDEX(ClassList[],MATCH(SUMPRODUCT((ClassList[DAY]=ClassSchedule[[#Headers],[THURSDAY]])*(ROUNDDOWN($B25,10)>=ROUNDDOWN(ClassList[START TIME],10))*($B25<=ClassList[END TIME]),ClassList[UNIQUE]),ClassList[UNIQUE],0),2),0)","v":0},{"$f":"IFERROR(INDEX(ClassList[],MATCH(SUMPRODUCT((ClassList[DAY]=ClassSchedule[[#Headers],[FRIDAY]])*(ROUNDDOWN($B25,10)>=ROUNDDOWN(ClassList[START TIME],10))*($B25<=ClassList[END TIME]),ClassList[UNIQUE]),ClassList[UNIQUE],0),2),0)","v":0},{"$f":"IFERROR(INDEX(ClassList[],MATCH(SUMPRODUCT((ClassList[DAY]=ClassSchedule[[#Headers],[SATURDAY]])*(ROUNDDOWN($B25,10)>=ROUNDDOWN(ClassList[START TIME],10))*($B25<=ClassList[END TIME]),ClassList[UNIQUE]),ClassList[UNIQUE],0),2),0)","v":0}]
[null,"13:00:00",{"$f":"IFERROR(INDEX(ClassList[],MATCH(SUMPRODUCT((ClassList[DAY]=ClassSchedule[[#Headers],[SUNDAY]])*(ROUNDDOWN($B26,10)>=ROUNDDOWN(ClassList[START TIME],10))*($B26<=ClassList[END TIME]),ClassList[UNIQUE]),ClassList[UNIQUE],0),2),0)","v":0},{"$f":"IFERROR(INDEX(ClassList[],MATCH(SUMPRODUCT((ClassList[DAY]=ClassSchedule[[#Headers],[MONDAY]])*(ROUNDDOWN($B26,10)>=ROUNDDOWN(ClassList[START TIME],10))*($B26<=ClassList[END TIME]),ClassList[UNIQUE]),ClassList[UNIQUE],0),2),0)","v":"WR-121"},{"$f":"IFERROR(INDEX(ClassList[],MATCH(SUMPRODUCT((ClassList[DAY]=ClassSchedule[[#Headers],[TUESDAY]])*(ROUNDDOWN($B26,10)>=ROUNDDOWN(ClassList[START TIME],10))*($B26<=ClassList[END TIME]),ClassList[UNIQUE]),ClassList[UNIQUE],0),2),0)","v":0},{"$f":"IFERROR(INDEX(ClassList[],MATCH(SUMPRODUCT((ClassList[DAY]=ClassSchedule[[#Headers],[WEDNESDAY]])*(ROUNDDOWN($B26,10)>=ROUNDDOWN(ClassList[START TIME],10))*($B26<=ClassList[END TIME]),ClassList[UNIQUE]),ClassList[UNIQUE],0),2),0)","v":"WR-121"},{"$f":"IFERROR(INDEX(ClassList[],MATCH(SUMPRODUCT((ClassList[DAY]=ClassSchedule[[#Headers],[THURSDAY]])*(ROUNDDOWN($B26,10)>=ROUNDDOWN(ClassList[START TIME],10))*($B26<=ClassList[END TIME]),ClassList[UNIQUE]),ClassList[UNIQUE],0),2),0)","v":0},{"$f":"IFERROR(INDEX(ClassList[],MATCH(SUMPRODUCT((ClassList[DAY]=ClassSchedule[[#Headers],[FRIDAY]])*(ROUNDDOWN($B26,10)>=ROUNDDOWN(ClassList[START TIME],10))*($B26<=ClassList[END TIME]),ClassList[UNIQUE]),ClassList[UNIQUE],0),2),0)","v":0},{"$f":"IFERROR(INDEX(ClassList[],MATCH(SUMPRODUCT((ClassList[DAY]=ClassSchedule[[#Headers],[SATURDAY]])*(ROUNDDOWN($B26,10)>=ROUNDDOWN(ClassList[START TIME],10))*($B26<=ClassList[END TIME]),ClassList[UNIQUE]),ClassList[UNIQUE],0),2),0)","v":0}]
[null,"13:15:00",{"$f":"IFERROR(INDEX(ClassList[],MATCH(SUMPRODUCT((ClassList[DAY]=ClassSchedule[[#Headers],[SUNDAY]])*(ROUNDDOWN($B27,10)>=ROUNDDOWN(ClassList[START TIME],10))*($B27<=ClassList[END TIME]),ClassList[UNIQUE]),ClassList[UNIQUE],0),2),0)","v":0},{"$f":"IFERROR(INDEX(ClassList[],MATCH(SUMPRODUCT((ClassList[DAY]=ClassSchedule[[#Headers],[MONDAY]])*(ROUNDDOWN($B27,10)>=ROUNDDOWN(ClassList[START TIME],10))*($B27<=ClassList[END TIME]),ClassList[UNIQUE]),ClassList[UNIQUE],0),2),0)","v":"WR-121"},{"$f":"IFERROR(INDEX(ClassList[],MATCH(SUMPRODUCT((ClassList[DAY]=ClassSchedule[[#Headers],[TUESDAY]])*(ROUNDDOWN($B27,10)>=ROUNDDOWN(ClassList[START TIME],10))*($B27<=ClassList[END TIME]),ClassList[UNIQUE]),ClassList[UNIQUE],0),2),0)","v":0},{"$f":"IFERROR(INDEX(ClassList[],MATCH(SUMPRODUCT((ClassList[DAY]=ClassSchedule[[#Headers],[WEDNESDAY]])*(ROUNDDOWN($B27,10)>=ROUNDDOWN(ClassList[START TIME],10))*($B27<=ClassList[END TIME]),ClassList[UNIQUE]),ClassList[UNIQUE],0),2),0)","v":"WR-121"},{"$f":"IFERROR(INDEX(ClassList[],MATCH(SUMPRODUCT((ClassList[DAY]=ClassSchedule[[#Headers],[THURSDAY]])*(ROUNDDOWN($B27,10)>=ROUNDDOWN(ClassList[START TIME],10))*($B27<=ClassList[END TIME]),ClassList[UNIQUE]),ClassList[UNIQUE],0),2),0)","v":0},{"$f":"IFERROR(INDEX(ClassList[],MATCH(SUMPRODUCT((ClassList[DAY]=ClassSchedule[[#Headers],[FRIDAY]])*(ROUNDDOWN($B27,10)>=ROUNDDOWN(ClassList[START TIME],10))*($B27<=ClassList[END TIME]),ClassList[UNIQUE]),ClassList[UNIQUE],0),2),0)","v":0},{"$f":"IFERROR(INDEX(ClassList[],MATCH(SUMPRODUCT((ClassList[DAY]=ClassSchedule[[#Headers],[SATURDAY]])*(ROUNDDOWN($B27,10)>=ROUNDDOWN(ClassList[START TIME],10))*($B27<=ClassList[END TIME]),ClassList[UNIQUE]),ClassList[UNIQUE],0),2),0)","v":0}]
[null,"13:30:00",{"$f":"IFERROR(INDEX(ClassList[],MATCH(SUMPRODUCT((ClassList[DAY]=ClassSchedule[[#Headers],[SUNDAY]])*(ROUNDDOWN($B28,10)>=ROUNDDOWN(ClassList[START TIME],10))*($B28<=ClassList[END TIME]),ClassList[UNIQUE]),ClassList[UNIQUE],0),2),0)","v":0},{"$f":"IFERROR(INDEX(ClassList[],MATCH(SUMPRODUCT((ClassList[DAY]=ClassSchedule[[#Headers],[MONDAY]])*(ROUNDDOWN($B28,10)>=ROUNDDOWN(ClassList[START TIME],10))*($B28<=ClassList[END TIME]),ClassList[UNIQUE]),ClassList[UNIQUE],0),2),0)","v":"WR-121"},{"$f":"IFERROR(INDEX(ClassList[],MATCH(SUMPRODUCT((ClassList[DAY]=ClassSchedule[[#Headers],[TUESDAY]])*(ROUNDDOWN($B28,10)>=ROUNDDOWN(ClassList[START TIME],10))*($B28<=ClassList[END TIME]),ClassList[UNIQUE]),ClassList[UNIQUE],0),2),0)","v":0},{"$f":"IFERROR(INDEX(ClassList[],MATCH(SUMPRODUCT((ClassList[DAY]=ClassSchedule[[#Headers],[WEDNESDAY]])*(ROUNDDOWN($B28,10)>=ROUNDDOWN(ClassList[START TIME],10))*($B28<=ClassList[END TIME]),ClassList[UNIQUE]),ClassList[UNIQUE],0),2),0)","v":"WR-121"},{"$f":"IFERROR(INDEX(ClassList[],MATCH(SUMPRODUCT((ClassList[DAY]=ClassSchedule[[#Headers],[THURSDAY]])*(ROUNDDOWN($B28,10)>=ROUNDDOWN(ClassList[START TIME],10))*($B28<=ClassList[END TIME]),ClassList[UNIQUE]),ClassList[UNIQUE],0),2),0)","v":0},{"$f":"IFERROR(INDEX(ClassList[],MATCH(SUMPRODUCT((ClassList[DAY]=ClassSchedule[[#Headers],[FRIDAY]])*(ROUNDDOWN($B28,10)>=ROUNDDOWN(ClassList[START TIME],10))*($B28<=ClassList[END TIME]),ClassList[UNIQUE]),ClassList[UNIQUE],0),2),0)","v":0},{"$f":"IFERROR(INDEX(ClassList[],MATCH(SUMPRODUCT((ClassList[DAY]=ClassSchedule[[#Headers],[SATURDAY]])*(ROUNDDOWN($B28,10)>=ROUNDDOWN(ClassList[START TIME],10))*($B28<=ClassList[END TIME]),ClassList[UNIQUE]),ClassList[UNIQUE],0),2),0)","v":0}]
[null,"13:45:00",{"$f":"IFERROR(INDEX(ClassList[],MATCH(SUMPRODUCT((ClassList[DAY]=ClassSchedule[[#Headers],[SUNDAY]])*(ROUNDDOWN($B29,10)>=ROUNDDOWN(ClassList[START TIME],10))*($B29<=ClassList[END TIME]),ClassList[UNIQUE]),ClassList[UNIQUE],0),2),0)","v":0},{"$f":"IFERROR(INDEX(ClassList[],MATCH(SUMPRODUCT((ClassList[DAY]=ClassSchedule[[#Headers],[MONDAY]])*(ROUNDDOWN($B29,10)>=ROUNDDOWN(ClassList[START TIME],10))*($B29<=ClassList[END TIME]),ClassList[UNIQUE]),ClassList[UNIQUE],0),2),0)","v":"WR-121"},{"$f":"IFERROR(INDEX(ClassList[],MATCH(SUMPRODUCT((ClassList[DAY]=ClassSchedule[[#Headers],[TUESDAY]])*(ROUNDDOWN($B29,10)>=ROUNDDOWN(ClassList[START TIME],10))*($B29<=ClassList[END TIME]),ClassList[UNIQUE]),ClassList[UNIQUE],0),2),0)","v":0},{"$f":"IFERROR(INDEX(ClassList[],MATCH(SUMPRODUCT((ClassList[DAY]=ClassSchedule[[#Headers],[WEDNESDAY]])*(ROUNDDOWN($B29,10)>=ROUNDDOWN(ClassList[START TIME],10))*($B29<=ClassList[END TIME]),ClassList[UNIQUE]),ClassList[UNIQUE],0),2),0)","v":"WR-121"},{"$f":"IFERROR(INDEX(ClassList[],MATCH(SUMPRODUCT((ClassList[DAY]=ClassSchedule[[#Headers],[THURSDAY]])*(ROUNDDOWN($B29,10)>=ROUNDDOWN(ClassList[START TIME],10))*($B29<=ClassList[END TIME]),ClassList[UNIQUE]),ClassList[UNIQUE],0),2),0)","v":0},{"$f":"IFERROR(INDEX(ClassList[],MATCH(SUMPRODUCT((ClassList[DAY]=ClassSchedule[[#Headers],[FRIDAY]])*(ROUNDDOWN($B29,10)>=ROUNDDOWN(ClassList[START TIME],10))*($B29<=ClassList[END TIME]),ClassList[UNIQUE]),ClassList[UNIQUE],0),2),0)","v":0},{"$f":"IFERROR(INDEX(ClassList[],MATCH(SUMPRODUCT((ClassList[DAY]=ClassSchedule[[#Headers],[SATURDAY]])*(ROUNDDOWN($B29,10)>=ROUNDDOWN(ClassList[START TIME],10))*($B29<=ClassList[END TIME]),ClassList[UNIQUE]),ClassList[UNIQUE],0),2),0)","v":0}]
[null,"14:00:00",{"$f":"IFERROR(INDEX(ClassList[],MATCH(SUMPRODUCT((ClassList[DAY]=ClassSchedule[[#Headers],[SUNDAY]])*(ROUNDDOWN($B30,10)>=ROUNDDOWN(ClassList[START TIME],10))*($B30<=ClassList[END TIME]),ClassList[UNIQUE]),ClassList[UNIQUE],0),2),0)","v":0},{"$f":"IFERROR(INDEX(ClassList[],MATCH(SUMPRODUCT((ClassList[DAY]=ClassSchedule[[#Headers],[MONDAY]])*(ROUNDDOWN($B30,10)>=ROUNDDOWN(ClassList[START TIME],10))*($B30<=ClassList[END TIME]),ClassList[UNIQUE]),ClassList[UNIQUE],0),2),0)","v":"WR-121"},{"$f":"IFERROR(INDEX(ClassList[],MATCH(SUMPRODUCT((ClassList[DAY]=ClassSchedule[[#Headers],[TUESDAY]])*(ROUNDDOWN($B30,10)>=ROUNDDOWN(ClassList[START TIME],10))*($B30<=ClassList[END TIME]),ClassList[UNIQUE]),ClassList[UNIQUE],0),2),0)","v":0},{"$f":"IFERROR(INDEX(ClassList[],MATCH(SUMPRODUCT((ClassList[DAY]=ClassSchedule[[#Headers],[WEDNESDAY]])*(ROUNDDOWN($B30,10)>=ROUNDDOWN(ClassList[START TIME],10))*($B30<=ClassList[END TIME]),ClassList[UNIQUE]),ClassList[UNIQUE],0),2),0)","v":"WR-121"},{"$f":"IFERROR(INDEX(ClassList[],MATCH(SUMPRODUCT((ClassList[DAY]=ClassSchedule[[#Headers],[THURSDAY]])*(ROUNDDOWN($B30,10)>=ROUNDDOWN(ClassList[START TIME],10))*($B30<=ClassList[END TIME]),ClassList[UNIQUE]),ClassList[UNIQUE],0),2),0)","v":0},{"$f":"IFERROR(INDEX(ClassList[],MATCH(SUMPRODUCT((ClassList[DAY]=ClassSchedule[[#Headers],[FRIDAY]])*(ROUNDDOWN($B30,10)>=ROUNDDOWN(ClassList[START TIME],10))*($B30<=ClassList[END TIME]),ClassList[UNIQUE]),ClassList[UNIQUE],0),2),0)","v":0},{"$f":"IFERROR(INDEX(ClassList[],MATCH(SUMPRODUCT((ClassList[DAY]=ClassSchedule[[#Headers],[SATURDAY]])*(ROUNDDOWN($B30,10)>=ROUNDDOWN(ClassList[START TIME],10))*($B30<=ClassList[END TIME]),ClassList[UNIQUE]),ClassList[UNIQUE],0),2),0)","v":0}]
[null,"14:15:00",{"$f":"IFERROR(INDEX(ClassList[],MATCH(SUMPRODUCT((ClassList[DAY]=ClassSchedule[[#Headers],[SUNDAY]])*(ROUNDDOWN($B31,10)>=ROUNDDOWN(ClassList[START TIME],10))*($B31<=ClassList[END TIME]),ClassList[UNIQUE]),ClassList[UNIQUE],0),2),0)","v":0},{"$f":"IFERROR(INDEX(ClassList[],MATCH(SUMPRODUCT((ClassList[DAY]=ClassSchedule[[#Headers],[MONDAY]])*(ROUNDDOWN($B31,10)>=ROUNDDOWN(ClassList[START TIME],10))*($B31<=ClassList[END TIME]),ClassList[UNIQUE]),ClassList[UNIQUE],0),2),0)","v":0},{"$f":"IFERROR(INDEX(ClassList[],MATCH(SUMPRODUCT((ClassList[DAY]=ClassSchedule[[#Headers],[TUESDAY]])*(ROUNDDOWN($B31,10)>=ROUNDDOWN(ClassList[START TIME],10))*($B31<=ClassList[END TIME]),ClassList[UNIQUE]),ClassList[UNIQUE],0),2),0)","v":0},{"$f":"IFERROR(INDEX(ClassList[],MATCH(SUMPRODUCT((ClassList[DAY]=ClassSchedule[[#Headers],[WEDNESDAY]])*(ROUNDDOWN($B31,10)>=ROUNDDOWN(ClassList[START TIME],10))*($B31<=ClassList[END TIME]),ClassList[UNIQUE]),ClassList[UNIQUE],0),2),0)","v":0},{"$f":"IFERROR(INDEX(ClassList[],MATCH(SUMPRODUCT((ClassList[DAY]=ClassSchedule[[#Headers],[THURSDAY]])*(ROUNDDOWN($B31,10)>=ROUNDDOWN(ClassList[START TIME],10))*($B31<=ClassList[END TIME]),ClassList[UNIQUE]),ClassList[UNIQUE],0),2),0)","v":0},{"$f":"IFERROR(INDEX(ClassList[],MATCH(SUMPRODUCT((ClassList[DAY]=ClassSchedule[[#Headers],[FRIDAY]])*(ROUNDDOWN($B31,10)>=ROUNDDOWN(ClassList[START TIME],10))*($B31<=ClassList[END TIME]),ClassList[UNIQUE]),ClassList[UNIQUE],0),2),0)","v":0},{"$f":"IFERROR(INDEX(ClassList[],MATCH(SUMPRODUCT((ClassList[DAY]=ClassSchedule[[#Headers],[SATURDAY]])*(ROUNDDOWN($B31,10)>=ROUNDDOWN(ClassList[START TIME],10))*($B31<=ClassList[END TIME]),ClassList[UNIQUE]),ClassList[UNIQUE],0),2),0)","v":0}]
[null,"14:30:00",{"$f":"IFERROR(INDEX(ClassList[],MATCH(SUMPRODUCT((ClassList[DAY]=ClassSchedule[[#Headers],[SUNDAY]])*(ROUNDDOWN($B32,10)>=ROUNDDOWN(ClassList[START TIME],10))*($B32<=ClassList[END TIME]),ClassList[UNIQUE]),ClassList[UNIQUE],0),2),0)","v":0},{"$f":"IFERROR(INDEX(ClassList[],MATCH(SUMPRODUCT((ClassList[DAY]=ClassSchedule[[#Headers],[MONDAY]])*(ROUNDDOWN($B32,10)>=ROUNDDOWN(ClassList[START TIME],10))*($B32<=ClassList[END TIME]),ClassList[UNIQUE]),ClassList[UNIQUE],0),2),0)","v":0},{"$f":"IFERROR(INDEX(ClassList[],MATCH(SUMPRODUCT((ClassList[DAY]=ClassSchedule[[#Headers],[TUESDAY]])*(ROUNDDOWN($B32,10)>=ROUNDDOWN(ClassList[START TIME],10))*($B32<=ClassList[END TIME]),ClassList[UNIQUE]),ClassList[UNIQUE],0),2),0)","v":0},{"$f":"IFERROR(INDEX(ClassList[],MATCH(SUMPRODUCT((ClassList[DAY]=ClassSchedule[[#Headers],[WEDNESDAY]])*(ROUNDDOWN($B32,10)>=ROUNDDOWN(ClassList[START TIME],10))*($B32<=ClassList[END TIME]),ClassList[UNIQUE]),ClassList[UNIQUE],0),2),0)","v":0},{"$f":"IFERROR(INDEX(ClassList[],MATCH(SUMPRODUCT((ClassList[DAY]=ClassSchedule[[#Headers],[THURSDAY]])*(ROUNDDOWN($B32,10)>=ROUNDDOWN(ClassList[START TIME],10))*($B32<=ClassList[END TIME]),ClassList[UNIQUE]),ClassList[UNIQUE],0),2),0)","v":0},{"$f":"IFERROR(INDEX(ClassList[],MATCH(SUMPRODUCT((ClassList[DAY]=ClassSchedule[[#Headers],[FRIDAY]])*(ROUNDDOWN($B32,10)>=ROUNDDOWN(ClassList[START TIME],10))*($B32<=ClassList[END TIME]),ClassList[UNIQUE]),ClassList[UNIQUE],0),2),0)","v":0},{"$f":"IFERROR(INDEX(ClassList[],MATCH(SUMPRODUCT((ClassList[DAY]=ClassSchedule[[#Headers],[SATURDAY]])*(ROUNDDOWN($B32,10)>=ROUNDDOWN(ClassList[START TIME],10))*($B32<=ClassList[END TIME]),ClassList[UNIQUE]),ClassList[UNIQUE],0),2),0)","v":0}]
[null,"14:45:00",{"$f":"IFERROR(INDEX(ClassList[],MATCH(SUMPRODUCT((ClassList[DAY]=ClassSchedule[[#Headers],[SUNDAY]])*(ROUNDDOWN($B33,10)>=ROUNDDOWN(ClassList[START TIME],10))*($B33<=ClassList[END TIME]),ClassList[UNIQUE]),ClassList[UNIQUE],0),2),0)","v":0},{"$f":"IFERROR(INDEX(ClassList[],MATCH(SUMPRODUCT((ClassList[DAY]=ClassSchedule[[#Headers],[MONDAY]])*(ROUNDDOWN($B33,10)>=ROUNDDOWN(ClassList[START TIME],10))*($B33<=ClassList[END TIME]),ClassList[UNIQUE]),ClassList[UNIQUE],0),2),0)","v":0},{"$f":"IFERROR(INDEX(ClassList[],MATCH(SUMPRODUCT((ClassList[DAY]=ClassSchedule[[#Headers],[TUESDAY]])*(ROUNDDOWN($B33,10)>=ROUNDDOWN(ClassList[START TIME],10))*($B33<=ClassList[END TIME]),ClassList[UNIQUE]),ClassList[UNIQUE],0),2),0)","v":0},{"$f":"IFERROR(INDEX(ClassList[],MATCH(SUMPRODUCT((ClassList[DAY]=ClassSchedule[[#Headers],[WEDNESDAY]])*(ROUNDDOWN($B33,10)>=ROUNDDOWN(ClassList[START TIME],10))*($B33<=ClassList[END TIME]),ClassList[UNIQUE]),ClassList[UNIQUE],0),2),0)","v":0},{"$f":"IFERROR(INDEX(ClassList[],MATCH(SUMPRODUCT((ClassList[DAY]=ClassSchedule[[#Headers],[THURSDAY]])*(ROUNDDOWN($B33,10)>=ROUNDDOWN(ClassList[START TIME],10))*($B33<=ClassList[END TIME]),ClassList[UNIQUE]),ClassList[UNIQUE],0),2),0)","v":0},{"$f":"IFERROR(INDEX(ClassList[],MATCH(SUMPRODUCT((ClassList[DAY]=ClassSchedule[[#Headers],[FRIDAY]])*(ROUNDDOWN($B33,10)>=ROUNDDOWN(ClassList[START TIME],10))*($B33<=ClassList[END TIME]),ClassList[UNIQUE]),ClassList[UNIQUE],0),2),0)","v":0},{"$f":"IFERROR(INDEX(ClassList[],MATCH(SUMPRODUCT((ClassList[DAY]=ClassSchedule[[#Headers],[SATURDAY]])*(ROUNDDOWN($B33,10)>=ROUNDDOWN(ClassList[START TIME],10))*($B33<=ClassList[END TIME]),ClassList[UNIQUE]),ClassList[UNIQUE],0),2),0)","v":0}]
[null,"15:00:00",{"$f":"IFERROR(INDEX(ClassList[],MATCH(SUMPRODUCT((ClassList[DAY]=ClassSchedule[[#Headers],[SUNDAY]])*(ROUNDDOWN($B34,10)>=ROUNDDOWN(ClassList[START TIME],10))*($B34<=ClassList[END TIME]),ClassList[UNIQUE]),ClassList[UNIQUE],0),2),0)","v":0},{"$f":"IFERROR(INDEX(ClassList[],MATCH(SUMPRODUCT((ClassList[DAY]=ClassSchedule[[#Headers],[MONDAY]])*(ROUNDDOWN($B34,10)>=ROUNDDOWN(ClassList[START TIME],10))*($B34<=ClassList[END TIME]),ClassList[UNIQUE]),ClassList[UNIQUE],0),2),0)","v":0},{"$f":"IFERROR(INDEX(ClassList[],MATCH(SUMPRODUCT((ClassList[DAY]=ClassSchedule[[#Headers],[TUESDAY]])*(ROUNDDOWN($B34,10)>=ROUNDDOWN(ClassList[START TIME],10))*($B34<=ClassList[END TIME]),ClassList[UNIQUE]),ClassList[UNIQUE],0),2),0)","v":0},{"$f":"IFERROR(INDEX(ClassList[],MATCH(SUMPRODUCT((ClassList[DAY]=ClassSchedule[[#Headers],[WEDNESDAY]])*(ROUNDDOWN($B34,10)>=ROUNDDOWN(ClassList[START TIME],10))*($B34<=ClassList[END TIME]),ClassList[UNIQUE]),ClassList[UNIQUE],0),2),0)","v":0},{"$f":"IFERROR(INDEX(ClassList[],MATCH(SUMPRODUCT((ClassList[DAY]=ClassSchedule[[#Headers],[THURSDAY]])*(ROUNDDOWN($B34,10)>=ROUNDDOWN(ClassList[START TIME],10))*($B34<=ClassList[END TIME]),ClassList[UNIQUE]),ClassList[UNIQUE],0),2),0)","v":0},{"$f":"IFERROR(INDEX(ClassList[],MATCH(SUMPRODUCT((ClassList[DAY]=ClassSchedule[[#Headers],[FRIDAY]])*(ROUNDDOWN($B34,10)>=ROUNDDOWN(ClassList[START TIME],10))*($B34<=ClassList[END TIME]),ClassList[UNIQUE]),ClassList[UNIQUE],0),2),0)","v":0},{"$f":"IFERROR(INDEX(ClassList[],MATCH(SUMPRODUCT((ClassList[DAY]=ClassSchedule[[#Headers],[SATURDAY]])*(ROUNDDOWN($B34,10)>=ROUNDDOWN(ClassList[START TIME],10))*($B34<=ClassList[END TIME]),ClassList[UNIQUE]),ClassList[UNIQUE],0),2),0)","v":0}]
[null,"15:15:00",{"$f":"IFERROR(INDEX(ClassList[],MATCH(SUMPRODUCT((ClassList[DAY]=ClassSchedule[[#Headers],[SUNDAY]])*(ROUNDDOWN($B35,10)>=ROUNDDOWN(ClassList[START TIME],10))*($B35<=ClassList[END TIME]),ClassList[UNIQUE]),ClassList[UNIQUE],0),2),0)","v":0},{"$f":"IFERROR(INDEX(ClassList[],MATCH(SUMPRODUCT((ClassList[DAY]=ClassSchedule[[#Headers],[MONDAY]])*(ROUNDDOWN($B35,10)>=ROUNDDOWN(ClassList[START TIME],10))*($B35<=ClassList[END TIME]),ClassList[UNIQUE]),ClassList[UNIQUE],0),2),0)","v":0},{"$f":"IFERROR(INDEX(ClassList[],MATCH(SUMPRODUCT((ClassList[DAY]=ClassSchedule[[#Headers],[TUESDAY]])*(ROUNDDOWN($B35,10)>=ROUNDDOWN(ClassList[START TIME],10))*($B35<=ClassList[END TIME]),ClassList[UNIQUE]),ClassList[UNIQUE],0),2),0)","v":0},{"$f":"IFERROR(INDEX(ClassList[],MATCH(SUMPRODUCT((ClassList[DAY]=ClassSchedule[[#Headers],[WEDNESDAY]])*(ROUNDDOWN($B35,10)>=ROUNDDOWN(ClassList[START TIME],10))*($B35<=ClassList[END TIME]),ClassList[UNIQUE]),ClassList[UNIQUE],0),2),0)","v":0},{"$f":"IFERROR(INDEX(ClassList[],MATCH(SUMPRODUCT((ClassList[DAY]=ClassSchedule[[#Headers],[THURSDAY]])*(ROUNDDOWN($B35,10)>=ROUNDDOWN(ClassList[START TIME],10))*($B35<=ClassList[END TIME]),ClassList[UNIQUE]),ClassList[UNIQUE],0),2),0)","v":0},{"$f":"IFERROR(INDEX(ClassList[],MATCH(SUMPRODUCT((ClassList[DAY]=ClassSchedule[[#Headers],[FRIDAY]])*(ROUNDDOWN($B35,10)>=ROUNDDOWN(ClassList[START TIME],10))*($B35<=ClassList[END TIME]),ClassList[UNIQUE]),ClassList[UNIQUE],0),2),0)","v":0},{"$f":"IFERROR(INDEX(ClassList[],MATCH(SUMPRODUCT((ClassList[DAY]=ClassSchedule[[#Headers],[SATURDAY]])*(ROUNDDOWN($B35,10)>=ROUNDDOWN(ClassList[START TIME],10))*($B35<=ClassList[END TIME]),ClassList[UNIQUE]),ClassList[UNIQUE],0),2),0)","v":0}]
[null,"15:30:00",{"$f":"IFERROR(INDEX(ClassList[],MATCH(SUMPRODUCT((ClassList[DAY]=ClassSchedule[[#Headers],[SUNDAY]])*(ROUNDDOWN($B36,10)>=ROUNDDOWN(ClassList[START TIME],10))*($B36<=ClassList[END TIME]),ClassList[UNIQUE]),ClassList[UNIQUE],0),2),0)","v":0},{"$f":"IFERROR(INDEX(ClassList[],MATCH(SUMPRODUCT((ClassList[DAY]=ClassSchedule[[#Headers],[MONDAY]])*(ROUNDDOWN($B36,10)>=ROUNDDOWN(ClassList[START TIME],10))*($B36<=ClassList[END TIME]),ClassList[UNIQUE]),ClassList[UNIQUE],0),2),0)","v":0},{"$f":"IFERROR(INDEX(ClassList[],MATCH(SUMPRODUCT((ClassList[DAY]=ClassSchedule[[#Headers],[TUESDAY]])*(ROUNDDOWN($B36,10)>=ROUNDDOWN(ClassList[START TIME],10))*($B36<=ClassList[END TIME]),ClassList[UNIQUE]),ClassList[UNIQUE],0),2),0)","v":0},{"$f":"IFERROR(INDEX(ClassList[],MATCH(SUMPRODUCT((ClassList[DAY]=ClassSchedule[[#Headers],[WEDNESDAY]])*(ROUNDDOWN($B36,10)>=ROUNDDOWN(ClassList[START TIME],10))*($B36<=ClassList[END TIME]),ClassList[UNIQUE]),ClassList[UNIQUE],0),2),0)","v":0},{"$f":"IFERROR(INDEX(ClassList[],MATCH(SUMPRODUCT((ClassList[DAY]=ClassSchedule[[#Headers],[THURSDAY]])*(ROUNDDOWN($B36,10)>=ROUNDDOWN(ClassList[START TIME],10))*($B36<=ClassList[END TIME]),ClassList[UNIQUE]),ClassList[UNIQUE],0),2),0)","v":0},{"$f":"IFERROR(INDEX(ClassList[],MATCH(SUMPRODUCT((ClassList[DAY]=ClassSchedule[[#Headers],[FRIDAY]])*(ROUNDDOWN($B36,10)>=ROUNDDOWN(ClassList[START TIME],10))*($B36<=ClassList[END TIME]),ClassList[UNIQUE]),ClassList[UNIQUE],0),2),0)","v":0},{"$f":"IFERROR(INDEX(ClassList[],MATCH(SUMPRODUCT((ClassList[DAY]=ClassSchedule[[#Headers],[SATURDAY]])*(ROUNDDOWN($B36,10)>=ROUNDDOWN(ClassList[START TIME],10))*($B36<=ClassList[END TIME]),ClassList[UNIQUE]),ClassList[UNIQUE],0),2),0)","v":0}]
[null,"15:45:00",{"$f":"IFERROR(INDEX(ClassList[],MATCH(SUMPRODUCT((ClassList[DAY]=ClassSchedule[[#Headers],[SUNDAY]])*(ROUNDDOWN($B37,10)>=ROUNDDOWN(ClassList[START TIME],10))*($B37<=ClassList[END TIME]),ClassList[UNIQUE]),ClassList[UNIQUE],0),2),0)","v":0},{"$f":"IFERROR(INDEX(ClassList[],MATCH(SUMPRODUCT((ClassList[DAY]=ClassSchedule[[#Headers],[MONDAY]])*(ROUNDDOWN($B37,10)>=ROUNDDOWN(ClassList[START TIME],10))*($B37<=ClassList[END TIME]),ClassList[UNIQUE]),ClassList[UNIQUE],0),2),0)","v":0},{"$f":"IFERROR(INDEX(ClassList[],MATCH(SUMPRODUCT((ClassList[DAY]=ClassSchedule[[#Headers],[TUESDAY]])*(ROUNDDOWN($B37,10)>=ROUNDDOWN(ClassList[START TIME],10))*($B37<=ClassList[END TIME]),ClassList[UNIQUE]),ClassList[UNIQUE],0),2),0)","v":0},{"$f":"IFERROR(INDEX(ClassList[],MATCH(SUMPRODUCT((ClassList[DAY]=ClassSchedule[[#Headers],[WEDNESDAY]])*(ROUNDDOWN($B37,10)>=ROUNDDOWN(ClassList[START TIME],10))*($B37<=ClassList[END TIME]),ClassList[UNIQUE]),ClassList[UNIQUE],0),2),0)","v":0},{"$f":"IFERROR(INDEX(ClassList[],MATCH(SUMPRODUCT((ClassList[DAY]=ClassSchedule[[#Headers],[THURSDAY]])*(ROUNDDOWN($B37,10)>=ROUNDDOWN(ClassList[START TIME],10))*($B37<=ClassList[END TIME]),ClassList[UNIQUE]),ClassList[UNIQUE],0),2),0)","v":0},{"$f":"IFERROR(INDEX(ClassList[],MATCH(SUMPRODUCT((ClassList[DAY]=ClassSchedule[[#Headers],[FRIDAY]])*(ROUNDDOWN($B37,10)>=ROUNDDOWN(ClassList[START TIME],10))*($B37<=ClassList[END TIME]),ClassList[UNIQUE]),ClassList[UNIQUE],0),2),0)","v":0},{"$f":"IFERROR(INDEX(ClassList[],MATCH(SUMPRODUCT((ClassList[DAY]=ClassSchedule[[#Headers],[SATURDAY]])*(ROUNDDOWN($B37,10)>=ROUNDDOWN(ClassList[START TIME],10))*($B37<=ClassList[END TIME]),ClassList[UNIQUE]),ClassList[UNIQUE],0),2),0)","v":0}]
[null,"16:00:00",{"$f":"IFERROR(INDEX(ClassList[],MATCH(SUMPRODUCT((ClassList[DAY]=ClassSchedule[[#Headers],[SUNDAY]])*(ROUNDDOWN($B38,10)>=ROUNDDOWN(ClassList[START TIME],10))*($B38<=ClassList[END TIME]),ClassList[UNIQUE]),ClassList[UNIQUE],0),2),0)","v":0},{"$f":"IFERROR(INDEX(ClassList[],MATCH(SUMPRODUCT((ClassList[DAY]=ClassSchedule[[#Headers],[MONDAY]])*(ROUNDDOWN($B38,10)>=ROUNDDOWN(ClassList[START TIME],10))*($B38<=ClassList[END TIME]),ClassList[UNIQUE]),ClassList[UNIQUE],0),2),0)","v":"SP-111"},{"$f":"IFERROR(INDEX(ClassList[],MATCH(SUMPRODUCT((ClassList[DAY]=ClassSchedule[[#Headers],[TUESDAY]])*(ROUNDDOWN($B38,10)>=ROUNDDOWN(ClassList[START TIME],10))*($B38<=ClassList[END TIME]),ClassList[UNIQUE]),ClassList[UNIQUE],0),2),0)","v":0},{"$f":"IFERROR(INDEX(ClassList[],MATCH(SUMPRODUCT((ClassList[DAY]=ClassSchedule[[#Headers],[WEDNESDAY]])*(ROUNDDOWN($B38,10)>=ROUNDDOWN(ClassList[START TIME],10))*($B38<=ClassList[END TIME]),ClassList[UNIQUE]),ClassList[UNIQUE],0),2),0)","v":0},{"$f":"IFERROR(INDEX(ClassList[],MATCH(SUMPRODUCT((ClassList[DAY]=ClassSchedule[[#Headers],[THURSDAY]])*(ROUNDDOWN($B38,10)>=ROUNDDOWN(ClassList[START TIME],10))*($B38<=ClassList[END TIME]),ClassList[UNIQUE]),ClassList[UNIQUE],0),2),0)","v":0},{"$f":"IFERROR(INDEX(ClassList[],MATCH(SUMPRODUCT((ClassList[DAY]=ClassSchedule[[#Headers],[FRIDAY]])*(ROUNDDOWN($B38,10)>=ROUNDDOWN(ClassList[START TIME],10))*($B38<=ClassList[END TIME]),ClassList[UNIQUE]),ClassList[UNIQUE],0),2),0)","v":0},{"$f":"IFERROR(INDEX(ClassList[],MATCH(SUMPRODUCT((ClassList[DAY]=ClassSchedule[[#Headers],[SATURDAY]])*(ROUNDDOWN($B38,10)>=ROUNDDOWN(ClassList[START TIME],10))*($B38<=ClassList[END TIME]),ClassList[UNIQUE]),ClassList[UNIQUE],0),2),0)","v":0}]
[null,{"$f":"B38+Increment","v":"16:15:00"},{"$f":"IFERROR(INDEX(ClassList[],MATCH(SUMPRODUCT((ClassList[DAY]=ClassSchedule[[#Headers],[SUNDAY]])*(ROUNDDOWN($B39,10)>=ROUNDDOWN(ClassList[START TIME],10))*($B39<=ClassList[END TIME]),ClassList[UNIQUE]),ClassList[UNIQUE],0),2),0)","v":0},{"$f":"IFERROR(INDEX(ClassList[],MATCH(SUMPRODUCT((ClassList[DAY]=ClassSchedule[[#Headers],[MONDAY]])*(ROUNDDOWN($B39,10)>=ROUNDDOWN(ClassList[START TIME],10))*($B39<=ClassList[END TIME]),ClassList[UNIQUE]),ClassList[UNIQUE],0),2),0)","v":"SP-111"},{"$f":"IFERROR(INDEX(ClassList[],MATCH(SUMPRODUCT((ClassList[DAY]=ClassSchedule[[#Headers],[TUESDAY]])*(ROUNDDOWN($B39,10)>=ROUNDDOWN(ClassList[START TIME],10))*($B39<=ClassList[END TIME]),ClassList[UNIQUE]),ClassList[UNIQUE],0),2),0)","v":0},{"$f":"IFERROR(INDEX(ClassList[],MATCH(SUMPRODUCT((ClassList[DAY]=ClassSchedule[[#Headers],[WEDNESDAY]])*(ROUNDDOWN($B39,10)>=ROUNDDOWN(ClassList[START TIME],10))*($B39<=ClassList[END TIME]),ClassList[UNIQUE]),ClassList[UNIQUE],0),2),0)","v":0},{"$f":"IFERROR(INDEX(ClassList[],MATCH(SUMPRODUCT((ClassList[DAY]=ClassSchedule[[#Headers],[THURSDAY]])*(ROUNDDOWN($B39,10)>=ROUNDDOWN(ClassList[START TIME],10))*($B39<=ClassList[END TIME]),ClassList[UNIQUE]),ClassList[UNIQUE],0),2),0)","v":0},{"$f":"IFERROR(INDEX(ClassList[],MATCH(SUMPRODUCT((ClassList[DAY]=ClassSchedule[[#Headers],[FRIDAY]])*(ROUNDDOWN($B39,10)>=ROUNDDOWN(ClassList[START TIME],10))*($B39<=ClassList[END TIME]),ClassList[UNIQUE]),ClassList[UNIQUE],0),2),0)","v":0},{"$f":"IFERROR(INDEX(ClassList[],MATCH(SUMPRODUCT((ClassList[DAY]=ClassSchedule[[#Headers],[SATURDAY]])*(ROUNDDOWN($B39,10)>=ROUNDDOWN(ClassList[START TIME],10))*($B39<=ClassList[END TIME]),ClassList[UNIQUE]),ClassList[UNIQUE],0),2),0)","v":0}]
[null,"16:30:00",{"$f":"IFERROR(INDEX(ClassList[],MATCH(SUMPRODUCT((ClassList[DAY]=ClassSchedule[[#Headers],[SUNDAY]])*(ROUNDDOWN($B40,10)>=ROUNDDOWN(ClassList[START TIME],10))*($B40<=ClassList[END TIME]),ClassList[UNIQUE]),ClassList[UNIQUE],0),2),0)","v":0},{"$f":"IFERROR(INDEX(ClassList[],MATCH(SUMPRODUCT((ClassList[DAY]=ClassSchedule[[#Headers],[MONDAY]])*(ROUNDDOWN($B40,10)>=ROUNDDOWN(ClassList[START TIME],10))*($B40<=ClassList[END TIME]),ClassList[UNIQUE]),ClassList[UNIQUE],0),2),0)","v":"SP-111"},{"$f":"IFERROR(INDEX(ClassList[],MATCH(SUMPRODUCT((ClassList[DAY]=ClassSchedule[[#Headers],[TUESDAY]])*(ROUNDDOWN($B40,10)>=ROUNDDOWN(ClassList[START TIME],10))*($B40<=ClassList[END TIME]),ClassList[UNIQUE]),ClassList[UNIQUE],0),2),0)","v":0},{"$f":"IFERROR(INDEX(ClassList[],MATCH(SUMPRODUCT((ClassList[DAY]=ClassSchedule[[#Headers],[WEDNESDAY]])*(ROUNDDOWN($B40,10)>=ROUNDDOWN(ClassList[START TIME],10))*($B40<=ClassList[END TIME]),ClassList[UNIQUE]),ClassList[UNIQUE],0),2),0)","v":0},{"$f":"IFERROR(INDEX(ClassList[],MATCH(SUMPRODUCT((ClassList[DAY]=ClassSchedule[[#Headers],[THURSDAY]])*(ROUNDDOWN($B40,10)>=ROUNDDOWN(ClassList[START TIME],10))*($B40<=ClassList[END TIME]),ClassList[UNIQUE]),ClassList[UNIQUE],0),2),0)","v":0},{"$f":"IFERROR(INDEX(ClassList[],MATCH(SUMPRODUCT((ClassList[DAY]=ClassSchedule[[#Headers],[FRIDAY]])*(ROUNDDOWN($B40,10)>=ROUNDDOWN(ClassList[START TIME],10))*($B40<=ClassList[END TIME]),ClassList[UNIQUE]),ClassList[UNIQUE],0),2),0)","v":0},{"$f":"IFERROR(INDEX(ClassList[],MATCH(SUMPRODUCT((ClassList[DAY]=ClassSchedule[[#Headers],[SATURDAY]])*(ROUNDDOWN($B40,10)>=ROUNDDOWN(ClassList[START TIME],10))*($B40<=ClassList[END TIME]),ClassList[UNIQUE]),ClassList[UNIQUE],0),2),0)","v":0}]
[null,"16:45:00",{"$f":"IFERROR(INDEX(ClassList[],MATCH(SUMPRODUCT((ClassList[DAY]=ClassSchedule[[#Headers],[SUNDAY]])*(ROUNDDOWN($B41,10)>=ROUNDDOWN(ClassList[START TIME],10))*($B41<=ClassList[END TIME]),ClassList[UNIQUE]),ClassList[UNIQUE],0),2),0)","v":0},{"$f":"IFERROR(INDEX(ClassList[],MATCH(SUMPRODUCT((ClassList[DAY]=ClassSchedule[[#Headers],[MONDAY]])*(ROUNDDOWN($B41,10)>=ROUNDDOWN(ClassList[START TIME],10))*($B41<=ClassList[END TIME]),ClassList[UNIQUE]),ClassList[UNIQUE],0),2),0)","v":"SP-111"},{"$f":"IFERROR(INDEX(ClassList[],MATCH(SUMPRODUCT((ClassList[DAY]=ClassSchedule[[#Headers],[TUESDAY]])*(ROUNDDOWN($B41,10)>=ROUNDDOWN(ClassList[START TIME],10))*($B41<=ClassList[END TIME]),ClassList[UNIQUE]),ClassList[UNIQUE],0),2),0)","v":0},{"$f":"IFERROR(INDEX(ClassList[],MATCH(SUMPRODUCT((ClassList[DAY]=ClassSchedule[[#Headers],[WEDNESDAY]])*(ROUNDDOWN($B41,10)>=ROUNDDOWN(ClassList[START TIME],10))*($B41<=ClassList[END TIME]),ClassList[UNIQUE]),ClassList[UNIQUE],0),2),0)","v":0},{"$f":"IFERROR(INDEX(ClassList[],MATCH(SUMPRODUCT((ClassList[DAY]=ClassSchedule[[#Headers],[THURSDAY]])*(ROUNDDOWN($B41,10)>=ROUNDDOWN(ClassList[START TIME],10))*($B41<=ClassList[END TIME]),ClassList[UNIQUE]),ClassList[UNIQUE],0),2),0)","v":0},{"$f":"IFERROR(INDEX(ClassList[],MATCH(SUMPRODUCT((ClassList[DAY]=ClassSchedule[[#Headers],[FRIDAY]])*(ROUNDDOWN($B41,10)>=ROUNDDOWN(ClassList[START TIME],10))*($B41<=ClassList[END TIME]),ClassList[UNIQUE]),ClassList[UNIQUE],0),2),0)","v":0},{"$f":"IFERROR(INDEX(ClassList[],MATCH(SUMPRODUCT((ClassList[DAY]=ClassSchedule[[#Headers],[SATURDAY]])*(ROUNDDOWN($B41,10)>=ROUNDDOWN(ClassList[START TIME],10))*($B41<=ClassList[END TIME]),ClassList[UNIQUE]),ClassList[UNIQUE],0),2),0)","v":0}]
[null,"17:00:00",{"$f":"IFERROR(INDEX(ClassList[],MATCH(SUMPRODUCT((ClassList[DAY]=ClassSchedule[[#Headers],[SUNDAY]])*(ROUNDDOWN($B42,10)>=ROUNDDOWN(ClassList[START TIME],10))*($B42<=ClassList[END TIME]),ClassList[UNIQUE]),ClassList[UNIQUE],0),2),0)","v":0},{"$f":"IFERROR(INDEX(ClassList[],MATCH(SUMPRODUCT((ClassList[DAY]=ClassSchedule[[#Headers],[MONDAY]])*(ROUNDDOWN($B42,10)>=ROUNDDOWN(ClassList[START TIME],10))*($B42<=ClassList[END TIME]),ClassList[UNIQUE]),ClassList[UNIQUE],0),2),0)","v":"SP-111"},{"$f":"IFERROR(INDEX(ClassList[],MATCH(SUMPRODUCT((ClassList[DAY]=ClassSchedule[[#Headers],[TUESDAY]])*(ROUNDDOWN($B42,10)>=ROUNDDOWN(ClassList[START TIME],10))*($B42<=ClassList[END TIME]),ClassList[UNIQUE]),ClassList[UNIQUE],0),2),0)","v":0},{"$f":"IFERROR(INDEX(ClassList[],MATCH(SUMPRODUCT((ClassList[DAY]=ClassSchedule[[#Headers],[WEDNESDAY]])*(ROUNDDOWN($B42,10)>=ROUNDDOWN(ClassList[START TIME],10))*($B42<=ClassList[END TIME]),ClassList[UNIQUE]),ClassList[UNIQUE],0),2),0)","v":0},{"$f":"IFERROR(INDEX(ClassList[],MATCH(SUMPRODUCT((ClassList[DAY]=ClassSchedule[[#Headers],[THURSDAY]])*(ROUNDDOWN($B42,10)>=ROUNDDOWN(ClassList[START TIME],10))*($B42<=ClassList[END TIME]),ClassList[UNIQUE]),ClassList[UNIQUE],0),2),0)","v":0},{"$f":"IFERROR(INDEX(ClassList[],MATCH(SUMPRODUCT((ClassList[DAY]=ClassSchedule[[#Headers],[FRIDAY]])*(ROUNDDOWN($B42,10)>=ROUNDDOWN(ClassList[START TIME],10))*($B42<=ClassList[END TIME]),ClassList[UNIQUE]),ClassList[UNIQUE],0),2),0)","v":0},{"$f":"IFERROR(INDEX(ClassList[],MATCH(SUMPRODUCT((ClassList[DAY]=ClassSchedule[[#Headers],[SATURDAY]])*(ROUNDDOWN($B42,10)>=ROUNDDOWN(ClassList[START TIME],10))*($B42<=ClassList[END TIME]),ClassList[UNIQUE]),ClassList[UNIQUE],0),2),0)","v":0}]
[null,"17:15:00",{"$f":"IFERROR(INDEX(ClassList[],MATCH(SUMPRODUCT((ClassList[DAY]=ClassSchedule[[#Headers],[SUNDAY]])*(ROUNDDOWN($B43,10)>=ROUNDDOWN(ClassList[START TIME],10))*($B43<=ClassList[END TIME]),ClassList[UNIQUE]),ClassList[UNIQUE],0),2),0)","v":0},{"$f":"IFERROR(INDEX(ClassList[],MATCH(SUMPRODUCT((ClassList[DAY]=ClassSchedule[[#Headers],[MONDAY]])*(ROUNDDOWN($B43,10)>=ROUNDDOWN(ClassList[START TIME],10))*($B43<=ClassList[END TIME]),ClassList[UNIQUE]),ClassList[UNIQUE],0),2),0)","v":0},{"$f":"IFERROR(INDEX(ClassList[],MATCH(SUMPRODUCT((ClassList[DAY]=ClassSchedule[[#Headers],[TUESDAY]])*(ROUNDDOWN($B43,10)>=ROUNDDOWN(ClassList[START TIME],10))*($B43<=ClassList[END TIME]),ClassList[UNIQUE]),ClassList[UNIQUE],0),2),0)","v":0},{"$f":"IFERROR(INDEX(ClassList[],MATCH(SUMPRODUCT((ClassList[DAY]=ClassSchedule[[#Headers],[WEDNESDAY]])*(ROUNDDOWN($B43,10)>=ROUNDDOWN(ClassList[START TIME],10))*($B43<=ClassList[END TIME]),ClassList[UNIQUE]),ClassList[UNIQUE],0),2),0)","v":0},{"$f":"IFERROR(INDEX(ClassList[],MATCH(SUMPRODUCT((ClassList[DAY]=ClassSchedule[[#Headers],[THURSDAY]])*(ROUNDDOWN($B43,10)>=ROUNDDOWN(ClassList[START TIME],10))*($B43<=ClassList[END TIME]),ClassList[UNIQUE]),ClassList[UNIQUE],0),2),0)","v":0},{"$f":"IFERROR(INDEX(ClassList[],MATCH(SUMPRODUCT((ClassList[DAY]=ClassSchedule[[#Headers],[FRIDAY]])*(ROUNDDOWN($B43,10)>=ROUNDDOWN(ClassList[START TIME],10))*($B43<=ClassList[END TIME]),ClassList[UNIQUE]),ClassList[UNIQUE],0),2),0)","v":0},{"$f":"IFERROR(INDEX(ClassList[],MATCH(SUMPRODUCT((ClassList[DAY]=ClassSchedule[[#Headers],[SATURDAY]])*(ROUNDDOWN($B43,10)>=ROUNDDOWN(ClassList[START TIME],10))*($B43<=ClassList[END TIME]),ClassList[UNIQUE]),ClassList[UNIQUE],0),2),0)","v":0}]
[null,"17:30:00",{"$f":"IFERROR(INDEX(ClassList[],MATCH(SUMPRODUCT((ClassList[DAY]=ClassSchedule[[#Headers],[SUNDAY]])*(ROUNDDOWN($B44,10)>=ROUNDDOWN(ClassList[START TIME],10))*($B44<=ClassList[END TIME]),ClassList[UNIQUE]),ClassList[UNIQUE],0),2),0)","v":0},{"$f":"IFERROR(INDEX(ClassList[],MATCH(SUMPRODUCT((ClassList[DAY]=ClassSchedule[[#Headers],[MONDAY]])*(ROUNDDOWN($B44,10)>=ROUNDDOWN(ClassList[START TIME],10))*($B44<=ClassList[END TIME]),ClassList[UNIQUE]),ClassList[UNIQUE],0),2),0)","v":0},{"$f":"IFERROR(INDEX(ClassList[],MATCH(SUMPRODUCT((ClassList[DAY]=ClassSchedule[[#Headers],[TUESDAY]])*(ROUNDDOWN($B44,10)>=ROUNDDOWN(ClassList[START TIME],10))*($B44<=ClassList[END TIME]),ClassList[UNIQUE]),ClassList[UNIQUE],0),2),0)","v":0},{"$f":"IFERROR(INDEX(ClassList[],MATCH(SUMPRODUCT((ClassList[DAY]=ClassSchedule[[#Headers],[WEDNESDAY]])*(ROUNDDOWN($B44,10)>=ROUNDDOWN(ClassList[START TIME],10))*($B44<=ClassList[END TIME]),ClassList[UNIQUE]),ClassList[UNIQUE],0),2),0)","v":0},{"$f":"IFERROR(INDEX(ClassList[],MATCH(SUMPRODUCT((ClassList[DAY]=ClassSchedule[[#Headers],[THURSDAY]])*(ROUNDDOWN($B44,10)>=ROUNDDOWN(ClassList[START TIME],10))*($B44<=ClassList[END TIME]),ClassList[UNIQUE]),ClassList[UNIQUE],0),2),0)","v":0},{"$f":"IFERROR(INDEX(ClassList[],MATCH(SUMPRODUCT((ClassList[DAY]=ClassSchedule[[#Headers],[FRIDAY]])*(ROUNDDOWN($B44,10)>=ROUNDDOWN(ClassList[START TIME],10))*($B44<=ClassList[END TIME]),ClassList[UNIQUE]),ClassList[UNIQUE],0),2),0)","v":0},{"$f":"IFERROR(INDEX(ClassList[],MATCH(SUMPRODUCT((ClassList[DAY]=ClassSchedule[[#Headers],[SATURDAY]])*(ROUNDDOWN($B44,10)>=ROUNDDOWN(ClassList[START TIME],10))*($B44<=ClassList[END TIME]),ClassList[UNIQUE]),ClassList[UNIQUE],0),2),0)","v":0}]
[null,"17:45:00",{"$f":"IFERROR(INDEX(ClassList[],MATCH(SUMPRODUCT((ClassList[DAY]=ClassSchedule[[#Headers],[SUNDAY]])*(ROUNDDOWN($B45,10)>=ROUNDDOWN(ClassList[START TIME],10))*($B45<=ClassList[END TIME]),ClassList[UNIQUE]),ClassList[UNIQUE],0),2),0)","v":0},{"$f":"IFERROR(INDEX(ClassList[],MATCH(SUMPRODUCT((ClassList[DAY]=ClassSchedule[[#Headers],[MONDAY]])*(ROUNDDOWN($B45,10)>=ROUNDDOWN(ClassList[START TIME],10))*($B45<=ClassList[END TIME]),ClassList[UNIQUE]),ClassList[UNIQUE],0),2),0)","v":0},{"$f":"IFERROR(INDEX(ClassList[],MATCH(SUMPRODUCT((ClassList[DAY]=ClassSchedule[[#Headers],[TUESDAY]])*(ROUNDDOWN($B45,10)>=ROUNDDOWN(ClassList[START TIME],10))*($B45<=ClassList[END TIME]),ClassList[UNIQUE]),ClassList[UNIQUE],0),2),0)","v":0},{"$f":"IFERROR(INDEX(ClassList[],MATCH(SUMPRODUCT((ClassList[DAY]=ClassSchedule[[#Headers],[WEDNESDAY]])*(ROUNDDOWN($B45,10)>=ROUNDDOWN(ClassList[START TIME],10))*($B45<=ClassList[END TIME]),ClassList[UNIQUE]),ClassList[UNIQUE],0),2),0)","v":0},{"$f":"IFERROR(INDEX(ClassList[],MATCH(SUMPRODUCT((ClassList[DAY]=ClassSchedule[[#Headers],[THURSDAY]])*(ROUNDDOWN($B45,10)>=ROUNDDOWN(ClassList[START TIME],10))*($B45<=ClassList[END TIME]),ClassList[UNIQUE]),ClassList[UNIQUE],0),2),0)","v":0},{"$f":"IFERROR(INDEX(ClassList[],MATCH(SUMPRODUCT((ClassList[DAY]=ClassSchedule[[#Headers],[FRIDAY]])*(ROUNDDOWN($B45,10)>=ROUNDDOWN(ClassList[START TIME],10))*($B45<=ClassList[END TIME]),ClassList[UNIQUE]),ClassList[UNIQUE],0),2),0)","v":0},{"$f":"IFERROR(INDEX(ClassList[],MATCH(SUMPRODUCT((ClassList[DAY]=ClassSchedule[[#Headers],[SATURDAY]])*(ROUNDDOWN($B45,10)>=ROUNDDOWN(ClassList[START TIME],10))*($B45<=ClassList[END TIME]),ClassList[UNIQUE]),ClassList[UNIQUE],0),2),0)","v":0}]
[null,"18:00:00",{"$f":"IFERROR(INDEX(ClassList[],MATCH(SUMPRODUCT((ClassList[DAY]=ClassSchedule[[#Headers],[SUNDAY]])*(ROUNDDOWN($B46,10)>=ROUNDDOWN(ClassList[START TIME],10))*($B46<=ClassList[END TIME]),ClassList[UNIQUE]),ClassList[UNIQUE],0),2),0)","v":0},{"$f":"IFERROR(INDEX(ClassList[],MATCH(SUMPRODUCT((ClassList[DAY]=ClassSchedule[[#Headers],[MONDAY]])*(ROUNDDOWN($B46,10)>=ROUNDDOWN(ClassList[START TIME],10))*($B46<=ClassList[END TIME]),ClassList[UNIQUE]),ClassList[UNIQUE],0),2),0)","v":0},{"$f":"IFERROR(INDEX(ClassList[],MATCH(SUMPRODUCT((ClassList[DAY]=ClassSchedule[[#Headers],[TUESDAY]])*(ROUNDDOWN($B46,10)>=ROUNDDOWN(ClassList[START TIME],10))*($B46<=ClassList[END TIME]),ClassList[UNIQUE]),ClassList[UNIQUE],0),2),0)","v":0},{"$f":"IFERROR(INDEX(ClassList[],MATCH(SUMPRODUCT((ClassList[DAY]=ClassSchedule[[#Headers],[WEDNESDAY]])*(ROUNDDOWN($B46,10)>=ROUNDDOWN(ClassList[START TIME],10))*($B46<=ClassList[END TIME]),ClassList[UNIQUE]),ClassList[UNIQUE],0),2),0)","v":0},{"$f":"IFERROR(INDEX(ClassList[],MATCH(SUMPRODUCT((ClassList[DAY]=ClassSchedule[[#Headers],[THURSDAY]])*(ROUNDDOWN($B46,10)>=ROUNDDOWN(ClassList[START TIME],10))*($B46<=ClassList[END TIME]),ClassList[UNIQUE]),ClassList[UNIQUE],0),2),0)","v":0},{"$f":"IFERROR(INDEX(ClassList[],MATCH(SUMPRODUCT((ClassList[DAY]=ClassSchedule[[#Headers],[FRIDAY]])*(ROUNDDOWN($B46,10)>=ROUNDDOWN(ClassList[START TIME],10))*($B46<=ClassList[END TIME]),ClassList[UNIQUE]),ClassList[UNIQUE],0),2),0)","v":0},{"$f":"IFERROR(INDEX(ClassList[],MATCH(SUMPRODUCT((ClassList[DAY]=ClassSchedule[[#Headers],[SATURDAY]])*(ROUNDDOWN($B46,10)>=ROUNDDOWN(ClassList[START TIME],10))*($B46<=ClassList[END TIME]),ClassList[UNIQUE]),ClassList[UNIQUE],0),2),0)","v":0}]
[null,"18:15:00",{"$f":"IFERROR(INDEX(ClassList[],MATCH(SUMPRODUCT((ClassList[DAY]=ClassSchedule[[#Headers],[SUNDAY]])*(ROUNDDOWN($B47,10)>=ROUNDDOWN(ClassList[START TIME],10))*($B47<=ClassList[END TIME]),ClassList[UNIQUE]),ClassList[UNIQUE],0),2),0)","v":0},{"$f":"IFERROR(INDEX(ClassList[],MATCH(SUMPRODUCT((ClassList[DAY]=ClassSchedule[[#Headers],[MONDAY]])*(ROUNDDOWN($B47,10)>=ROUNDDOWN(ClassList[START TIME],10))*($B47<=ClassList[END TIME]),ClassList[UNIQUE]),ClassList[UNIQUE],0),2),0)","v":0},{"$f":"IFERROR(INDEX(ClassList[],MATCH(SUMPRODUCT((ClassList[DAY]=ClassSchedule[[#Headers],[TUESDAY]])*(ROUNDDOWN($B47,10)>=ROUNDDOWN(ClassList[START TIME],10))*($B47<=ClassList[END TIME]),ClassList[UNIQUE]),ClassList[UNIQUE],0),2),0)","v":0},{"$f":"IFERROR(INDEX(ClassList[],MATCH(SUMPRODUCT((ClassList[DAY]=ClassSchedule[[#Headers],[WEDNESDAY]])*(ROUNDDOWN($B47,10)>=ROUNDDOWN(ClassList[START TIME],10))*($B47<=ClassList[END TIME]),ClassList[UNIQUE]),ClassList[UNIQUE],0),2),0)","v":0},{"$f":"IFERROR(INDEX(ClassList[],MATCH(SUMPRODUCT((ClassList[DAY]=ClassSchedule[[#Headers],[THURSDAY]])*(ROUNDDOWN($B47,10)>=ROUNDDOWN(ClassList[START TIME],10))*($B47<=ClassList[END TIME]),ClassList[UNIQUE]),ClassList[UNIQUE],0),2),0)","v":0},{"$f":"IFERROR(INDEX(ClassList[],MATCH(SUMPRODUCT((ClassList[DAY]=ClassSchedule[[#Headers],[FRIDAY]])*(ROUNDDOWN($B47,10)>=ROUNDDOWN(ClassList[START TIME],10))*($B47<=ClassList[END TIME]),ClassList[UNIQUE]),ClassList[UNIQUE],0),2),0)","v":0},{"$f":"IFERROR(INDEX(ClassList[],MATCH(SUMPRODUCT((ClassList[DAY]=ClassSchedule[[#Headers],[SATURDAY]])*(ROUNDDOWN($B47,10)>=ROUNDDOWN(ClassList[START TIME],10))*($B47<=ClassList[END TIME]),ClassList[UNIQUE]),ClassList[UNIQUE],0),2),0)","v":0}]
[null,"18:30:00",{"$f":"IFERROR(INDEX(ClassList[],MATCH(SUMPRODUCT((ClassList[DAY]=ClassSchedule[[#Headers],[SUNDAY]])*(ROUNDDOWN($B48,10)>=ROUNDDOWN(ClassList[START TIME],10))*($B48<=ClassList[END TIME]),ClassList[UNIQUE]),ClassList[UNIQUE],0),2),0)","v":0},{"$f":"IFERROR(INDEX(ClassList[],MATCH(SUMPRODUCT((ClassList[DAY]=ClassSchedule[[#Headers],[MONDAY]])*(ROUNDDOWN($B48,10)>=ROUNDDOWN(ClassList[START TIME],10))*($B48<=ClassList[END TIME]),ClassList[UNIQUE]),ClassList[UNIQUE],0),2),0)","v":0},{"$f":"IFERROR(INDEX(ClassList[],MATCH(SUMPRODUCT((ClassList[DAY]=ClassSchedule[[#Headers],[TUESDAY]])*(ROUNDDOWN($B48,10)>=ROUNDDOWN(ClassList[START TIME],10))*($B48<=ClassList[END TIME]),ClassList[UNIQUE]),ClassList[UNIQUE],0),2),0)","v":0},{"$f":"IFERROR(INDEX(ClassList[],MATCH(SUMPRODUCT((ClassList[DAY]=ClassSchedule[[#Headers],[WEDNESDAY]])*(ROUNDDOWN($B48,10)>=ROUNDDOWN(ClassList[START TIME],10))*($B48<=ClassList[END TIME]),ClassList[UNIQUE]),ClassList[UNIQUE],0),2),0)","v":0},{"$f":"IFERROR(INDEX(ClassList[],MATCH(SUMPRODUCT((ClassList[DAY]=ClassSchedule[[#Headers],[THURSDAY]])*(ROUNDDOWN($B48,10)>=ROUNDDOWN(ClassList[START TIME],10))*($B48<=ClassList[END TIME]),ClassList[UNIQUE]),ClassList[UNIQUE],0),2),0)","v":0},{"$f":"IFERROR(INDEX(ClassList[],MATCH(SUMPRODUCT((ClassList[DAY]=ClassSchedule[[#Headers],[FRIDAY]])*(ROUNDDOWN($B48,10)>=ROUNDDOWN(ClassList[START TIME],10))*($B48<=ClassList[END TIME]),ClassList[UNIQUE]),ClassList[UNIQUE],0),2),0)","v":0},{"$f":"IFERROR(INDEX(ClassList[],MATCH(SUMPRODUCT((ClassList[DAY]=ClassSchedule[[#Headers],[SATURDAY]])*(ROUNDDOWN($B48,10)>=ROUNDDOWN(ClassList[START TIME],10))*($B48<=ClassList[END TIME]),ClassList[UNIQUE]),ClassList[UNIQUE],0),2),0)","v":0}]
[null,"18:45:00",{"$f":"IFERROR(INDEX(ClassList[],MATCH(SUMPRODUCT((ClassList[DAY]=ClassSchedule[[#Headers],[SUNDAY]])*(ROUNDDOWN($B49,10)>=ROUNDDOWN(ClassList[START TIME],10))*($B49<=ClassList[END TIME]),ClassList[UNIQUE]),ClassList[UNIQUE],0),2),0)","v":0},{"$f":"IFERROR(INDEX(ClassList[],MATCH(SUMPRODUCT((ClassList[DAY]=ClassSchedule[[#Headers],[MONDAY]])*(ROUNDDOWN($B49,10)>=ROUNDDOWN(ClassList[START TIME],10))*($B49<=ClassList[END TIME]),ClassList[UNIQUE]),ClassList[UNIQUE],0),2),0)","v":0},{"$f":"IFERROR(INDEX(ClassList[],MATCH(SUMPRODUCT((ClassList[DAY]=ClassSchedule[[#Headers],[TUESDAY]])*(ROUNDDOWN($B49,10)>=ROUNDDOWN(ClassList[START TIME],10))*($B49<=ClassList[END TIME]),ClassList[UNIQUE]),ClassList[UNIQUE],0),2),0)","v":0},{"$f":"IFERROR(INDEX(ClassList[],MATCH(SUMPRODUCT((ClassList[DAY]=ClassSchedule[[#Headers],[WEDNESDAY]])*(ROUNDDOWN($B49,10)>=ROUNDDOWN(ClassList[START TIME],10))*($B49<=ClassList[END TIME]),ClassList[UNIQUE]),ClassList[UNIQUE],0),2),0)","v":0},{"$f":"IFERROR(INDEX(ClassList[],MATCH(SUMPRODUCT((ClassList[DAY]=ClassSchedule[[#Headers],[THURSDAY]])*(ROUNDDOWN($B49,10)>=ROUNDDOWN(ClassList[START TIME],10))*($B49<=ClassList[END TIME]),ClassList[UNIQUE]),ClassList[UNIQUE],0),2),0)","v":0},{"$f":"IFERROR(INDEX(ClassList[],MATCH(SUMPRODUCT((ClassList[DAY]=ClassSchedule[[#Headers],[FRIDAY]])*(ROUNDDOWN($B49,10)>=ROUNDDOWN(ClassList[START TIME],10))*($B49<=ClassList[END TIME]),ClassList[UNIQUE]),ClassList[UNIQUE],0),2),0)","v":0},{"$f":"IFERROR(INDEX(ClassList[],MATCH(SUMPRODUCT((ClassList[DAY]=ClassSchedule[[#Headers],[SATURDAY]])*(ROUNDDOWN($B49,10)>=ROUNDDOWN(ClassList[START TIME],10))*($B49<=ClassList[END TIME]),ClassList[UNIQUE]),ClassList[UNIQUE],0),2),0)","v":0}]
[null,"19:00:00",{"$f":"IFERROR(INDEX(ClassList[],MATCH(SUMPRODUCT((ClassList[DAY]=ClassSchedule[[#Headers],[SUNDAY]])*(ROUNDDOWN($B50,10)>=ROUNDDOWN(ClassList[START TIME],10))*($B50<=ClassList[END TIME]),ClassList[UNIQUE]),ClassList[UNIQUE],0),2),0)","v":0},{"$f":"IFERROR(INDEX(ClassList[],MATCH(SUMPRODUCT((ClassList[DAY]=ClassSchedule[[#Headers],[MONDAY]])*(ROUNDDOWN($B50,10)>=ROUNDDOWN(ClassList[START TIME],10))*($B50<=ClassList[END TIME]),ClassList[UNIQUE]),ClassList[UNIQUE],0),2),0)","v":0},{"$f":"IFERROR(INDEX(ClassList[],MATCH(SUMPRODUCT((ClassList[DAY]=ClassSchedule[[#Headers],[TUESDAY]])*(ROUNDDOWN($B50,10)>=ROUNDDOWN(ClassList[START TIME],10))*($B50<=ClassList[END TIME]),ClassList[UNIQUE]),ClassList[UNIQUE],0),2),0)","v":0},{"$f":"IFERROR(INDEX(ClassList[],MATCH(SUMPRODUCT((ClassList[DAY]=ClassSchedule[[#Headers],[WEDNESDAY]])*(ROUNDDOWN($B50,10)>=ROUNDDOWN(ClassList[START TIME],10))*($B50<=ClassList[END TIME]),ClassList[UNIQUE]),ClassList[UNIQUE],0),2),0)","v":0},{"$f":"IFERROR(INDEX(ClassList[],MATCH(SUMPRODUCT((ClassList[DAY]=ClassSchedule[[#Headers],[THURSDAY]])*(ROUNDDOWN($B50,10)>=ROUNDDOWN(ClassList[START TIME],10))*($B50<=ClassList[END TIME]),ClassList[UNIQUE]),ClassList[UNIQUE],0),2),0)","v":0},{"$f":"IFERROR(INDEX(ClassList[],MATCH(SUMPRODUCT((ClassList[DAY]=ClassSchedule[[#Headers],[FRIDAY]])*(ROUNDDOWN($B50,10)>=ROUNDDOWN(ClassList[START TIME],10))*($B50<=ClassList[END TIME]),ClassList[UNIQUE]),ClassList[UNIQUE],0),2),0)","v":0},{"$f":"IFERROR(INDEX(ClassList[],MATCH(SUMPRODUCT((ClassList[DAY]=ClassSchedule[[#Headers],[SATURDAY]])*(ROUNDDOWN($B50,10)>=ROUNDDOWN(ClassList[START TIME],10))*($B50<=ClassList[END TIME]),ClassList[UNIQUE]),ClassList[UNIQUE],0),2),0)","v":0}]
[null,"19:15:00",{"$f":"IFERROR(INDEX(ClassList[],MATCH(SUMPRODUCT((ClassList[DAY]=ClassSchedule[[#Headers],[SUNDAY]])*(ROUNDDOWN($B51,10)>=ROUNDDOWN(ClassList[START TIME],10))*($B51<=ClassList[END TIME]),ClassList[UNIQUE]),ClassList[UNIQUE],0),2),0)","v":0},{"$f":"IFERROR(INDEX(ClassList[],MATCH(SUMPRODUCT((ClassList[DAY]=ClassSchedule[[#Headers],[MONDAY]])*(ROUNDDOWN($B51,10)>=ROUNDDOWN(ClassList[START TIME],10))*($B51<=ClassList[END TIME]),ClassList[UNIQUE]),ClassList[UNIQUE],0),2),0)","v":0},{"$f":"IFERROR(INDEX(ClassList[],MATCH(SUMPRODUCT((ClassList[DAY]=ClassSchedule[[#Headers],[TUESDAY]])*(ROUNDDOWN($B51,10)>=ROUNDDOWN(ClassList[START TIME],10))*($B51<=ClassList[END TIME]),ClassList[UNIQUE]),ClassList[UNIQUE],0),2),0)","v":0},{"$f":"IFERROR(INDEX(ClassList[],MATCH(SUMPRODUCT((ClassList[DAY]=ClassSchedule[[#Headers],[WEDNESDAY]])*(ROUNDDOWN($B51,10)>=ROUNDDOWN(ClassList[START TIME],10))*($B51<=ClassList[END TIME]),ClassList[UNIQUE]),ClassList[UNIQUE],0),2),0)","v":0},{"$f":"IFERROR(INDEX(ClassList[],MATCH(SUMPRODUCT((ClassList[DAY]=ClassSchedule[[#Headers],[THURSDAY]])*(ROUNDDOWN($B51,10)>=ROUNDDOWN(ClassList[START TIME],10))*($B51<=ClassList[END TIME]),ClassList[UNIQUE]),ClassList[UNIQUE],0),2),0)","v":0},{"$f":"IFERROR(INDEX(ClassList[],MATCH(SUMPRODUCT((ClassList[DAY]=ClassSchedule[[#Headers],[FRIDAY]])*(ROUNDDOWN($B51,10)>=ROUNDDOWN(ClassList[START TIME],10))*($B51<=ClassList[END TIME]),ClassList[UNIQUE]),ClassList[UNIQUE],0),2),0)","v":0},{"$f":"IFERROR(INDEX(ClassList[],MATCH(SUMPRODUCT((ClassList[DAY]=ClassSchedule[[#Headers],[SATURDAY]])*(ROUNDDOWN($B51,10)>=ROUNDDOWN(ClassList[START TIME],10))*($B51<=ClassList[END TIME]),ClassList[UNIQUE]),ClassList[UNIQUE],0),2),0)","v":0}]
[null,"19:30:00",{"$f":"IFERROR(INDEX(ClassList[],MATCH(SUMPRODUCT((ClassList[DAY]=ClassSchedule[[#Headers],[SUNDAY]])*(ROUNDDOWN($B52,10)>=ROUNDDOWN(ClassList[START TIME],10))*($B52<=ClassList[END TIME]),ClassList[UNIQUE]),ClassList[UNIQUE],0),2),0)","v":0},{"$f":"IFERROR(INDEX(ClassList[],MATCH(SUMPRODUCT((ClassList[DAY]=ClassSchedule[[#Headers],[MONDAY]])*(ROUNDDOWN($B52,10)>=ROUNDDOWN(ClassList[START TIME],10))*($B52<=ClassList[END TIME]),ClassList[UNIQUE]),ClassList[UNIQUE],0),2),0)","v":0},{"$f":"IFERROR(INDEX(ClassList[],MATCH(SUMPRODUCT((ClassList[DAY]=ClassSchedule[[#Headers],[TUESDAY]])*(ROUNDDOWN($B52,10)>=ROUNDDOWN(ClassList[START TIME],10))*($B52<=ClassList[END TIME]),ClassList[UNIQUE]),ClassList[UNIQUE],0),2),0)","v":0},{"$f":"IFERROR(INDEX(ClassList[],MATCH(SUMPRODUCT((ClassList[DAY]=ClassSchedule[[#Headers],[WEDNESDAY]])*(ROUNDDOWN($B52,10)>=ROUNDDOWN(ClassList[START TIME],10))*($B52<=ClassList[END TIME]),ClassList[UNIQUE]),ClassList[UNIQUE],0),2),0)","v":0},{"$f":"IFERROR(INDEX(ClassList[],MATCH(SUMPRODUCT((ClassList[DAY]=ClassSchedule[[#Headers],[THURSDAY]])*(ROUNDDOWN($B52,10)>=ROUNDDOWN(ClassList[START TIME],10))*($B52<=ClassList[END TIME]),ClassList[UNIQUE]),ClassList[UNIQUE],0),2),0)","v":0},{"$f":"IFERROR(INDEX(ClassList[],MATCH(SUMPRODUCT((ClassList[DAY]=ClassSchedule[[#Headers],[FRIDAY]])*(ROUNDDOWN($B52,10)>=ROUNDDOWN(ClassList[START TIME],10))*($B52<=ClassList[END TIME]),ClassList[UNIQUE]),ClassList[UNIQUE],0),2),0)","v":0},{"$f":"IFERROR(INDEX(ClassList[],MATCH(SUMPRODUCT((ClassList[DAY]=ClassSchedule[[#Headers],[SATURDAY]])*(ROUNDDOWN($B52,10)>=ROUNDDOWN(ClassList[START TIME],10))*($B52<=ClassList[END TIME]),ClassList[UNIQUE]),ClassList[UNIQUE],0),2),0)","v":0}]
[null,"19:45:00",{"$f":"IFERROR(INDEX(ClassList[],MATCH(SUMPRODUCT((ClassList[DAY]=ClassSchedule[[#Headers],[SUNDAY]])*(ROUNDDOWN($B53,10)>=ROUNDDOWN(ClassList[START TIME],10))*($B53<=ClassList[END TIME]),ClassList[UNIQUE]),ClassList[UNIQUE],0),2),0)","v":0},{"$f":"IFERROR(INDEX(ClassList[],MATCH(SUMPRODUCT((ClassList[DAY]=ClassSchedule[[#Headers],[MONDAY]])*(ROUNDDOWN($B53,10)>=ROUNDDOWN(ClassList[START TIME],10))*($B53<=ClassList[END TIME]),ClassList[UNIQUE]),ClassList[UNIQUE],0),2),0)","v":0},{"$f":"IFERROR(INDEX(ClassList[],MATCH(SUMPRODUCT((ClassList[DAY]=ClassSchedule[[#Headers],[TUESDAY]])*(ROUNDDOWN($B53,10)>=ROUNDDOWN(ClassList[START TIME],10))*($B53<=ClassList[END TIME]),ClassList[UNIQUE]),ClassList[UNIQUE],0),2),0)","v":0},{"$f":"IFERROR(INDEX(ClassList[],MATCH(SUMPRODUCT((ClassList[DAY]=ClassSchedule[[#Headers],[WEDNESDAY]])*(ROUNDDOWN($B53,10)>=ROUNDDOWN(ClassList[START TIME],10))*($B53<=ClassList[END TIME]),ClassList[UNIQUE]),ClassList[UNIQUE],0),2),0)","v":0},{"$f":"IFERROR(INDEX(ClassList[],MATCH(SUMPRODUCT((ClassList[DAY]=ClassSchedule[[#Headers],[THURSDAY]])*(ROUNDDOWN($B53,10)>=ROUNDDOWN(ClassList[START TIME],10))*($B53<=ClassList[END TIME]),ClassList[UNIQUE]),ClassList[UNIQUE],0),2),0)","v":0},{"$f":"IFERROR(INDEX(ClassList[],MATCH(SUMPRODUCT((ClassList[DAY]=ClassSchedule[[#Headers],[FRIDAY]])*(ROUNDDOWN($B53,10)>=ROUNDDOWN(ClassList[START TIME],10))*($B53<=ClassList[END TIME]),ClassList[UNIQUE]),ClassList[UNIQUE],0),2),0)","v":0},{"$f":"IFERROR(INDEX(ClassList[],MATCH(SUMPRODUCT((ClassList[DAY]=ClassSchedule[[#Headers],[SATURDAY]])*(ROUNDDOWN($B53,10)>=ROUNDDOWN(ClassList[START TIME],10))*($B53<=ClassList[END TIME]),ClassList[UNIQUE]),ClassList[UNIQUE],0),2),0)","v":0}]
[null,"20:00:00",{"$f":"IFERROR(INDEX(ClassList[],MATCH(SUMPRODUCT((ClassList[DAY]=ClassSchedule[[#Headers],[SUNDAY]])*(ROUNDDOWN($B54,10)>=ROUNDDOWN(ClassList[START TIME],10))*($B54<=ClassList[END TIME]),ClassList[UNIQUE]),ClassList[UNIQUE],0),2),0)","v":0},{"$f":"IFERROR(INDEX(ClassList[],MATCH(SUMPRODUCT((ClassList[DAY]=ClassSchedule[[#Headers],[MONDAY]])*(ROUNDDOWN($B54,10)>=ROUNDDOWN(ClassList[START TIME],10))*($B54<=ClassList[END TIME]),ClassList[UNIQUE]),ClassList[UNIQUE],0),2),0)","v":0},{"$f":"IFERROR(INDEX(ClassList[],MATCH(SUMPRODUCT((ClassList[DAY]=ClassSchedule[[#Headers],[TUESDAY]])*(ROUNDDOWN($B54,10)>=ROUNDDOWN(ClassList[START TIME],10))*($B54<=ClassList[END TIME]),ClassList[UNIQUE]),ClassList[UNIQUE],0),2),0)","v":0},{"$f":"IFERROR(INDEX(ClassList[],MATCH(SUMPRODUCT((ClassList[DAY]=ClassSchedule[[#Headers],[WEDNESDAY]])*(ROUNDDOWN($B54,10)>=ROUNDDOWN(ClassList[START TIME],10))*($B54<=ClassList[END TIME]),ClassList[UNIQUE]),ClassList[UNIQUE],0),2),0)","v":0},{"$f":"IFERROR(INDEX(ClassList[],MATCH(SUMPRODUCT((ClassList[DAY]=ClassSchedule[[#Headers],[THURSDAY]])*(ROUNDDOWN($B54,10)>=ROUNDDOWN(ClassList[START TIME],10))*($B54<=ClassList[END TIME]),ClassList[UNIQUE]),ClassList[UNIQUE],0),2),0)","v":0},{"$f":"IFERROR(INDEX(ClassList[],MATCH(SUMPRODUCT((ClassList[DAY]=ClassSchedule[[#Headers],[FRIDAY]])*(ROUNDDOWN($B54,10)>=ROUNDDOWN(ClassList[START TIME],10))*($B54<=ClassList[END TIME]),ClassList[UNIQUE]),ClassList[UNIQUE],0),2),0)","v":0},{"$f":"IFERROR(INDEX(ClassList[],MATCH(SUMPRODUCT((ClassList[DAY]=ClassSchedule[[#Headers],[SATURDAY]])*(ROUNDDOWN($B54,10)>=ROUNDDOWN(ClassList[START TIME],10))*($B54<=ClassList[END TIME]),ClassList[UNIQUE]),ClassList[UNIQUE],0),2),0)","v":0}]
[null,"20:15:00",{"$f":"IFERROR(INDEX(ClassList[],MATCH(SUMPRODUCT((ClassList[DAY]=ClassSchedule[[#Headers],[SUNDAY]])*(ROUNDDOWN($B55,10)>=ROUNDDOWN(ClassList[START TIME],10))*($B55<=ClassList[END TIME]),ClassList[UNIQUE]),ClassList[UNIQUE],0),2),0)","v":0},{"$f":"IFERROR(INDEX(ClassList[],MATCH(SUMPRODUCT((ClassList[DAY]=ClassSchedule[[#Headers],[MONDAY]])*(ROUNDDOWN($B55,10)>=ROUNDDOWN(ClassList[START TIME],10))*($B55<=ClassList[END TIME]),ClassList[UNIQUE]),ClassList[UNIQUE],0),2),0)","v":0},{"$f":"IFERROR(INDEX(ClassList[],MATCH(SUMPRODUCT((ClassList[DAY]=ClassSchedule[[#Headers],[TUESDAY]])*(ROUNDDOWN($B55,10)>=ROUNDDOWN(ClassList[START TIME],10))*($B55<=ClassList[END TIME]),ClassList[UNIQUE]),ClassList[UNIQUE],0),2),0)","v":0},{"$f":"IFERROR(INDEX(ClassList[],MATCH(SUMPRODUCT((ClassList[DAY]=ClassSchedule[[#Headers],[WEDNESDAY]])*(ROUNDDOWN($B55,10)>=ROUNDDOWN(ClassList[START TIME],10))*($B55<=ClassList[END TIME]),ClassList[UNIQUE]),ClassList[UNIQUE],0),2),0)","v":0},{"$f":"IFERROR(INDEX(ClassList[],MATCH(SUMPRODUCT((ClassList[DAY]=ClassSchedule[[#Headers],[THURSDAY]])*(ROUNDDOWN($B55,10)>=ROUNDDOWN(ClassList[START TIME],10))*($B55<=ClassList[END TIME]),ClassList[UNIQUE]),ClassList[UNIQUE],0),2),0)","v":0},{"$f":"IFERROR(INDEX(ClassList[],MATCH(SUMPRODUCT((ClassList[DAY]=ClassSchedule[[#Headers],[FRIDAY]])*(ROUNDDOWN($B55,10)>=ROUNDDOWN(ClassList[START TIME],10))*($B55<=ClassList[END TIME]),ClassList[UNIQUE]),ClassList[UNIQUE],0),2),0)","v":0},{"$f":"IFERROR(INDEX(ClassList[],MATCH(SUMPRODUCT((ClassList[DAY]=ClassSchedule[[#Headers],[SATURDAY]])*(ROUNDDOWN($B55,10)>=ROUNDDOWN(ClassList[START TIME],10))*($B55<=ClassList[END TIME]),ClassList[UNIQUE]),ClassList[UNIQUE],0),2),0)","v":0}]
[null,"20:30:00",{"$f":"IFERROR(INDEX(ClassList[],MATCH(SUMPRODUCT((ClassList[DAY]=ClassSchedule[[#Headers],[SUNDAY]])*(ROUNDDOWN($B56,10)>=ROUNDDOWN(ClassList[START TIME],10))*($B56<=ClassList[END TIME]),ClassList[UNIQUE]),ClassList[UNIQUE],0),2),0)","v":0},{"$f":"IFERROR(INDEX(ClassList[],MATCH(SUMPRODUCT((ClassList[DAY]=ClassSchedule[[#Headers],[MONDAY]])*(ROUNDDOWN($B56,10)>=ROUNDDOWN(ClassList[START TIME],10))*($B56<=ClassList[END TIME]),ClassList[UNIQUE]),ClassList[UNIQUE],0),2),0)","v":0},{"$f":"IFERROR(INDEX(ClassList[],MATCH(SUMPRODUCT((ClassList[DAY]=ClassSchedule[[#Headers],[TUESDAY]])*(ROUNDDOWN($B56,10)>=ROUNDDOWN(ClassList[START TIME],10))*($B56<=ClassList[END TIME]),ClassList[UNIQUE]),ClassList[UNIQUE],0),2),0)","v":0},{"$f":"IFERROR(INDEX(ClassList[],MATCH(SUMPRODUCT((ClassList[DAY]=ClassSchedule[[#Headers],[WEDNESDAY]])*(ROUNDDOWN($B56,10)>=ROUNDDOWN(ClassList[START TIME],10))*($B56<=ClassList[END TIME]),ClassList[UNIQUE]),ClassList[UNIQUE],0),2),0)","v":0},{"$f":"IFERROR(INDEX(ClassList[],MATCH(SUMPRODUCT((ClassList[DAY]=ClassSchedule[[#Headers],[THURSDAY]])*(ROUNDDOWN($B56,10)>=ROUNDDOWN(ClassList[START TIME],10))*($B56<=ClassList[END TIME]),ClassList[UNIQUE]),ClassList[UNIQUE],0),2),0)","v":0},{"$f":"IFERROR(INDEX(ClassList[],MATCH(SUMPRODUCT((ClassList[DAY]=ClassSchedule[[#Headers],[FRIDAY]])*(ROUNDDOWN($B56,10)>=ROUNDDOWN(ClassList[START TIME],10))*($B56<=ClassList[END TIME]),ClassList[UNIQUE]),ClassList[UNIQUE],0),2),0)","v":0},{"$f":"IFERROR(INDEX(ClassList[],MATCH(SUMPRODUCT((ClassList[DAY]=ClassSchedule[[#Headers],[SATURDAY]])*(ROUNDDOWN($B56,10)>=ROUNDDOWN(ClassList[START TIME],10))*($B56<=ClassList[END TIME]),ClassList[UNIQUE]),ClassList[UNIQUE],0),2),0)","v":0}]
[null,"20:45:00",{"$f":"IFERROR(INDEX(ClassList[],MATCH(SUMPRODUCT((ClassList[DAY]=ClassSchedule[[#Headers],[SUNDAY]])*(ROUNDDOWN($B57,10)>=ROUNDDOWN(ClassList[START TIME],10))*($B57<=ClassList[END TIME]),ClassList[UNIQUE]),ClassList[UNIQUE],0),2),0)","v":0},{"$f":"IFERROR(INDEX(ClassList[],MATCH(SUMPRODUCT((ClassList[DAY]=ClassSchedule[[#Headers],[MONDAY]])*(ROUNDDOWN($B57,10)>=ROUNDDOWN(ClassList[START TIME],10))*($B57<=ClassList[END TIME]),ClassList[UNIQUE]),ClassList[UNIQUE],0),2),0)","v":0},{"$f":"IFERROR(INDEX(ClassList[],MATCH(SUMPRODUCT((ClassList[DAY]=ClassSchedule[[#Headers],[TUESDAY]])*(ROUNDDOWN($B57,10)>=ROUNDDOWN(ClassList[START TIME],10))*($B57<=ClassList[END TIME]),ClassList[UNIQUE]),ClassList[UNIQUE],0),2),0)","v":0},{"$f":"IFERROR(INDEX(ClassList[],MATCH(SUMPRODUCT((ClassList[DAY]=ClassSchedule[[#Headers],[WEDNESDAY]])*(ROUNDDOWN($B57,10)>=ROUNDDOWN(ClassList[START TIME],10))*($B57<=ClassList[END TIME]),ClassList[UNIQUE]),ClassList[UNIQUE],0),2),0)","v":0},{"$f":"IFERROR(INDEX(ClassList[],MATCH(SUMPRODUCT((ClassList[DAY]=ClassSchedule[[#Headers],[THURSDAY]])*(ROUNDDOWN($B57,10)>=ROUNDDOWN(ClassList[START TIME],10))*($B57<=ClassList[END TIME]),ClassList[UNIQUE]),ClassList[UNIQUE],0),2),0)","v":0},{"$f":"IFERROR(INDEX(ClassList[],MATCH(SUMPRODUCT((ClassList[DAY]=ClassSchedule[[#Headers],[FRIDAY]])*(ROUNDDOWN($B57,10)>=ROUNDDOWN(ClassList[START TIME],10))*($B57<=ClassList[END TIME]),ClassList[UNIQUE]),ClassList[UNIQUE],0),2),0)","v":0},{"$f":"IFERROR(INDEX(ClassList[],MATCH(SUMPRODUCT((ClassList[DAY]=ClassSchedule[[#Headers],[SATURDAY]])*(ROUNDDOWN($B57,10)>=ROUNDDOWN(ClassList[START TIME],10))*($B57<=ClassList[END TIME]),ClassList[UNIQUE]),ClassList[UNIQUE],0),2),0)","v":0}]
[null,"21:00:00",{"$f":"IFERROR(INDEX(ClassList[],MATCH(SUMPRODUCT((ClassList[DAY]=ClassSchedule[[#Headers],[SUNDAY]])*(ROUNDDOWN($B58,10)>=ROUNDDOWN(ClassList[START TIME],10))*($B58<=ClassList[END TIME]),ClassList[UNIQUE]),ClassList[UNIQUE],0),2),0)","v":0},{"$f":"IFERROR(INDEX(ClassList[],MATCH(SUMPRODUCT((ClassList[DAY]=ClassSchedule[[#Headers],[MONDAY]])*(ROUNDDOWN($B58,10)>=ROUNDDOWN(ClassList[START TIME],10))*($B58<=ClassList[END TIME]),ClassList[UNIQUE]),ClassList[UNIQUE],0),2),0)","v":0},{"$f":"IFERROR(INDEX(ClassList[],MATCH(SUMPRODUCT((ClassList[DAY]=ClassSchedule[[#Headers],[TUESDAY]])*(ROUNDDOWN($B58,10)>=ROUNDDOWN(ClassList[START TIME],10))*($B58<=ClassList[END TIME]),ClassList[UNIQUE]),ClassList[UNIQUE],0),2),0)","v":0},{"$f":"IFERROR(INDEX(ClassList[],MATCH(SUMPRODUCT((ClassList[DAY]=ClassSchedule[[#Headers],[WEDNESDAY]])*(ROUNDDOWN($B58,10)>=ROUNDDOWN(ClassList[START TIME],10))*($B58<=ClassList[END TIME]),ClassList[UNIQUE]),ClassList[UNIQUE],0),2),0)","v":0},{"$f":"IFERROR(INDEX(ClassList[],MATCH(SUMPRODUCT((ClassList[DAY]=ClassSchedule[[#Headers],[THURSDAY]])*(ROUNDDOWN($B58,10)>=ROUNDDOWN(ClassList[START TIME],10))*($B58<=ClassList[END TIME]),ClassList[UNIQUE]),ClassList[UNIQUE],0),2),0)","v":0},{"$f":"IFERROR(INDEX(ClassList[],MATCH(SUMPRODUCT((ClassList[DAY]=ClassSchedule[[#Headers],[FRIDAY]])*(ROUNDDOWN($B58,10)>=ROUNDDOWN(ClassList[START TIME],10))*($B58<=ClassList[END TIME]),ClassList[UNIQUE]),ClassList[UNIQUE],0),2),0)","v":0},{"$f":"IFERROR(INDEX(ClassList[],MATCH(SUMPRODUCT((ClassList[DAY]=ClassSchedule[[#Headers],[SATURDAY]])*(ROUNDDOWN($B58,10)>=ROUNDDOWN(ClassList[START TIME],10))*($B58<=ClassList[END TIME]),ClassList[UNIQUE]),ClassList[UNIQUE],0),2),0)","v":0}]

{"sheet":"Class list","index":1,"n_rows":12,"n_cols":9,"rows_kept":12,"merged":[[0,1,1,4],[1,6,1,7]]}
[null,"Class List",{"$nulls":6}," "]
[{"$nulls":6},"CLASS SCHEDULE"]
[]
[null,"CLASS","ID","DAY","LOCATION","START TIME","END TIME","UNIQUE"]
[null,"Technical writing","WR-121","MONDAY","Building A","13:00:00","14:00:00",{"$f":"ROW()-ROW(ClassList[[#Headers],[UNIQUE]])","v":1}]
[null,"Technical writing","WR-121","WEDNESDAY","Building A","13:00:00","14:00:00",{"$f":"ROW()-ROW(ClassList[[#Headers],[UNIQUE]])","v":2}]
[null,"Public speaking","SP-111","MONDAY","Building B","16:00:00","17:00:00",{"$f":"ROW()-ROW(ClassList[[#Headers],[UNIQUE]])","v":3}]
[null,"Health & fitness","HPE-295","TUESDAY","Building B","11:00:00","12:00:00",{"$f":"ROW()-ROW(ClassList[[#Headers],[UNIQUE]])","v":4}]
[null,"Health & fitness","HPE-295","THURSDAY","Building B","11:00:00","12:00:00",{"$f":"ROW()-ROW(ClassList[[#Headers],[UNIQUE]])","v":5}]
[null,"Algebra","MTH-113","MONDAY","Building C","08:10:00","09:15:00",{"$f":"ROW()-ROW(ClassList[[#Headers],[UNIQUE]])","v":6}]
[null,"Algebra","MTH-113","WEDNESDAY","Building C","08:10:00","09:15:00",{"$f":"ROW()-ROW(ClassList[[#Headers],[UNIQUE]])","v":7}]
[null,"Algebra","MTH-113","FRIDAY","Building C","08:10:00","09:15:00",{"$f":"ROW()-ROW(ClassList[[#Headers],[UNIQUE]])","v":8}]